Workbook

Sheet Приход металл
J1: Заказ | K1: ДАНО | L1: ФАКТ
J2: 4013 | K2: =SUMIF(Спецификация[Заказ],'Приход металл'!J2,Спецификация[общий]) -> 304380 | L2: =SUMIF(Приход[Заказ],'Приход металл'!J2,Приход[Масса]) -> 0
J3: 4014 | K3: =SUMIF(Спецификация[Заказ],'Приход металл'!J3,Спецификация[общий]) -> 199953 | L3: =SUMIF(Приход[Заказ],'Приход металл'!J3,Приход[Масса]) -> 0
J4: 4041 | K4: =SUMIF(Спецификация[Заказ],'Приход металл'!J4,Спецификация[общий]) -> 305436 | L4: =SUMIF(Приход[Заказ],'Приход металл'!J4,Приход[Масса]) -> 0
C5: =OFFSET('Наим+Заказ'!B2,MATCH('Приход металл'!B9,Груп1[Заказ],0)-1,-1,COUNTIF(Груп1[Заказ],'Приход металл'!B9),1) -> Вставка по верхнему поясу | E5: =OFFSET('Заказ+Марка'!A2,MATCH('Приход металл'!B9,Груп2[Заказ],0)-1,1,COUNTIF(Груп2[Заказ],'Приход металл'!B9),1) -> Б374 | J5: 4042 | K5: =SUMIF(Спецификация[Заказ],'Приход металл'!J5,Спецификация[общий]) -> 262032 | L5: =SUMIF(Приход[Заказ],'Приход металл'!J5,Приход[Масса]) -> 0
J6: 4043 | K6: =SUMIF(Спецификация[Заказ],'Приход металл'!J6,Спецификация[общий]) -> 277614 | L6: =SUMIF(Приход[Заказ],'Приход металл'!J6,Приход[Масса]) -> 0
A7: РЕЕСТР ПРИХОД | K7: =SUM(K2:K6) -> 1349415 | L7: =SUM(L2:L6) -> 0
A8: Дата | B8: Заказ | C8: Наименование материалов и конструкций | D8: Количество | E8: Марка элемента | F8: Сертификат | G8: Площадь наружных поверхностей, м² | H8: Площадь внутренних поверхностей, м² | I8: Масса
A9: 2021-11-30 | B9: 4013 | C9: Вставка верхнего пояса | D9: 5 | F9: 3449 | I9: =SUMIFS(Спецификация[общий],Спецификация[Заказ],Приход[[#This Row],[Заказ]],Спецификация[Марка],Приход[[#This Row],[Марка элемента]]) -> 0
A10: 2021-11-30 | B10: 4014 | C10: Консольная плита | D10: 1 | F10: 3449 | I10: =SUMIFS(Спецификация[общий],Спецификация[Заказ],Приход[[#This Row],[Заказ]],Спецификация[Марка],Приход[[#This Row],[Марка элемента]]) -> 0
A11: 2021-11-30 | B11: 4041 | C11: Консольная плита | D11: 1 | F11: 3449 | I11: =SUMIFS(Спецификация[общий],Спецификация[Заказ],Приход[[#This Row],[Заказ]],Спецификация[Марка],Приход[[#This Row],[Марка элемента]]) -> 0
A12: 2021-12-01 | B12: 4043 | C12: Консольная плита | D12: 1 | F12: 3478 | I12: =SUMIFS(Спецификация[общий],Спецификация[Заказ],Приход[[#This Row],[Заказ]],Спецификация[Марка],Приход[[#This Row],[Марка элемента]]) -> 0

Sheet Заказ
A1: Заказ
A2: 4013
A3: 4014
A4: 4041
A5: 4042
A6: 4043

Sheet Наименование
A1: Наименование
A2: Балка
A3: Вставка
A4: Вставка верхнего пояса
A5: Вставка по верхнему поясу
A6: Вставка по ребрам верхнего пояса
A7: Вставка по ребрам нижнего пояса
A8: Вставка ребер по стенке
A9: Опорный лист
A10: Накладка
A11: Прокладка
A12: Консольная плита
A13: Ортотропная плита
A14: Можтажное ребро стенки

Sheet Марка
A1: Марка
A2: Б221
A3: Б222
A4: Б231
A5: Б232
A6: Б241
A7: Б242
A8: Б243
A9: Б244
A10: Б251
A11: Б251
A12: Б252
A13: Б252
A14: Б253
A15: Б253
A16: Б254
A17: Б254
A18: Б261
A19: Б262
A20: Б263
A21: Б264
A22: Б281
A23: Б282
A24: Б283
A25: Б284
A26: Б301
A27: Б302
A28: Б303
A29: Б304
A30: Б311
A31: Б312
A32: Б313
A33: Б314
A34: Б321
A35: Б322
A36: Б331
A37: Б332
A38: Б333
A39: Б334
A40: Б341
A41: Б342
A42: Б343
A43: Б344
A44: Б351
A45: Б352
A46: Б353
A47: Б354
A48: Б361
A49: Б362
A50: Б363
A51: Б364
A52: Б371
A53: Б372
A54: Б373
A55: Б374
A56: Б381
A57: Б382
A58: Б383
A59: Б384
A60: Б391
A61: Б392
A62: Б393
A63: Б394
A64: Б401
A65: Б402
A66: Б403
A67: Б404
A68: Б411
A69: Б412
A70: Б413
A71: Б414
A72: Б421
A73: Б422
A74: В1
A75: В10
A76: В2
A77: В3
A78: В4
A79: В5
A80: В6
A81: В7
A82: В8
A83: В9
A84: ВВП1
A85: ВВП2
A86: ВВП3
A87: ВВП4
A88: ВН1
A89: ВПП1
A90: ВПП2
A91: ВРВ1
A92: ВРВ2
A93: ВРН1
A94: ВРН2
A95: ВРС1
A96: ВРС2
A97: ЛО32
A98: ЛО42
A99: Н1
A100: Н17
A101: Н18
A102: Н2
A103: Н3
A104: Н3-1
A105: Н4
A106: Н5
A107: Н6
A108: Н7
A109: Н8
A110: Н9
A111: П1
A112: П2
A113: П3
A114: П4
A115: ПК221
A116: ПК222
A117: ПК231
A118: ПК232
A119: ПК241
A120: ПК242
A121: ПК261
A122: ПК261
A123: ПК262
A124: ПК262
A125: ПК271
A126: ПК281
A127: ПК301
A128: ПК302
A129: ПК311
A130: ПК312
A131: ПК321
A132: ПК322
A133: ПК331
A134: ПК332
A135: ПК341
A136: ПК342
A137: ПК351
A138: ПК352
A139: ПК361
A140: ПК362
A141: ПК371
A142: ПК372
A143: ПК381
A144: ПК382
A145: ПК391
A146: ПК392
A147: ПК401
A148: ПК402
A149: ПК411
A150: ПК412
A151: ПК421
A152: ПК422
A153: ПП221
A154: ПП231
A155: ПП241
A156: ПП261
A157: ПП261
A158: ПП301
A159: ПП311
A160: ПП321
A161: ПП331
A162: ПП341
A163: ПП351
A164: ПП361
A165: ПП371
A166: ПП381
A167: ПП391
A168: ПП401
A169: ПП411
A170: ПП421
A171: РС1
A172: РС2
A173: РС3
A174: РС4

Sheet Наим+Заказ
A1: Наименование | B1: Заказ
A2: Балка | B2: 4013
A3: Вставка | B3: 4013
A4: Вставка верхнего пояса | B4: 4013
A5: Вставка по верхнему поясу | B5: 4013
A6: Вставка по ребрам верхнего пояса | B6: 4013
A7: Вставка по ребрам нижнего пояса | B7: 4013
A8: Вставка ребер по стенке | B8: 4013
A9: Опорный лист | B9: 4013
A10: Накладка | B10: 4013
A11: Прокладка | B11: 4013
A12: Консольная плита | B12: 4013
A13: Ортотропная плита | B13: 4013
A14: Можтажное ребро стенки | B14: 4013
A15: Балка | B15: 4014
A16: Вставка | B16: 4014
A17: Вставка верхнего пояса | B17: 4014
A18: Вставка по верхнему поясу | B18: 4014
A19: Вставка по ребрам верхнего пояса | B19: 4014
A20: Вставка по ребрам нижнего пояса | B20: 4014
A21: Вставка ребер по стенке | B21: 4014
A22: Опорный лист | B22: 4014
A23: Накладка | B23: 4014
A24: Прокладка | B24: 4014
A25: Консольная плита | B25: 4014
A26: Ортотропная плита | B26: 4014
A27: Можтажное ребро стенки | B27: 4014
A28: Балка | B28: 4041
A29: Вставка | B29: 4041
A30: Вставка верхнего пояса | B30: 4041
A31: Вставка по верхнему поясу | B31: 4041
A32: Вставка по ребрам верхнего пояса | B32: 4041
A33: Вставка по ребрам нижнего пояса | B33: 4041
A34: Вставка ребер по стенке | B34: 4041
A35: Опорный лист | B35: 4041
A36: Накладка | B36: 4041
A37: Прокладка | B37: 4041
A38: Консольная плита | B38: 4041
A39: Ортотропная плита | B39: 4041
A40: Можтажное ребро стенки | B40: 4041
A41: Балка | B41: 4042
A42: Вставка | B42: 4042
A43: Вставка верхнего пояса | B43: 4042
A44: Вставка по верхнему поясу | B44: 4042
A45: Вставка по ребрам верхнего пояса | B45: 4042
A46: Вставка по ребрам нижнего пояса | B46: 4042
A47: Вставка ребер по стенке | B47: 4042
A48: Опорный лист | B48: 4042
A49: Накладка | B49: 4042
A50: Прокладка | B50: 4042
A51: Консольная плита | B51: 4042
A52: Ортотропная плита | B52: 4042
A53: Можтажное ребро стенки | B53: 4042
A54: Балка | B54: 4043
A55: Вставка | B55: 4043
A56: Вставка верхнего пояса | B56: 4043
A57: Вставка по верхнему поясу | B57: 4043
A58: Вставка по ребрам верхнего пояса | B58: 4043
A59: Вставка по ребрам нижнего пояса | B59: 4043
A60: Вставка ребер по стенке | B60: 4043
A61: Опорный лист | B61: 4043
A62: Накладка | B62: 4043
A63: Прокладка | B63: 4043
A64: Консольная плита | B64: 4043
A65: Ортотропная плита | B65: 4043
A66: Можтажное ребро стенки | B66: 4043

Sheet Заказ+Марка
A1: Заказ | B1: Марка
A2: 4013 | B2: Б371
A3: 4013 | B3: Б372
A4: 4013 | B4: Б373
A5: 4013 | B5: Б374
A6: 4013 | B6: Б381
A7: 4013 | B7: Б382
A8: 4013 | B8: Б383
A9: 4013 | B9: Б384
A10: 4013 | B10: Б391
A11: 4013 | B11: Б392
A12: 4013 | B12: Б393
A13: 4013 | B13: Б394
A14: 4013 | B14: Б401
A15: 4013 | B15: Б402
A16: 4013 | B16: Б403
A17: 4013 | B17: Б404
A18: 4013 | B18: Б411
A19: 4013 | B19: Б412
A20: 4013 | B20: Б413
A21: 4013 | B21: Б414
A22: 4013 | B22: Б421
A23: 4013 | B23: Б422
A24: 4013 | B24: ПП371
A25: 4013 | B25: ПП381
A26: 4013 | B26: ПП391
A27: 4013 | B27: ПП401
A28: 4013 | B28: ПП411
A29: 4013 | B29: ПП421
A30: 4013 | B30: ПК371
A31: 4013 | B31: ПК372
A32: 4013 | B32: ПК381
A33: 4013 | B33: ПК382
A34: 4013 | B34: ПК391
A35: 4013 | B35: ПК392
A36: 4013 | B36: ПК401
A37: 4013 | B37: ПК402
A38: 4013 | B38: ПК411
A39: 4013 | B39: ПК412
A40: 4013 | B40: ПК421
A41: 4013 | B41: ПК422
A42: 4013 | B42: П1
A43: 4013 | B43: П2
A44: 4013 | B44: РС1
A45: 4013 | B45: РС2
A46: 4013 | B46: ВПП1
A47: 4013 | B47: ВПП2
A48: 4013 | B48: ВРВ1
A49: 4013 | B49: ВРН1
A50: 4013 | B50: ВРС1
A51: 4013 | B51: ВН1
A52: 4013 | B52: В1
A53: 4013 | B53: В2
A54: 4013 | B54: В3
A55: 4013 | B55: В4
A56: 4013 | B56: В5
A57: 4013 | B57: В6
A58: 4013 | B58: Н1
A59: 4013 | B59: Н2
A60: 4013 | B60: Н3
A61: 4013 | B61: Н3-1
A62: 4013 | B62: Н4
A63: 4013 | B63: Н5
A64: 4013 | B64: Н6
A65: 4013 | B65: Н7
A66: 4013 | B66: Н8
A67: 4013 | B67: ЛО42
A68: 4014 | B68: Б341
A69: 4014 | B69: Б342
A70: 4014 | B70: Б343
A71: 4014 | B71: Б344
A72: 4014 | B72: Б351
A73: 4014 | B73: Б352
A74: 4014 | B74: Б353
A75: 4014 | B75: Б354
A76: 4014 | B76: Б361
A77: 4014 | B77: Б362
A78: 4014 | B78: Б363
A79: 4014 | B79: Б364
A80: 4014 | B80: ПП341
A81: 4014 | B81: ПП351
A82: 4014 | B82: ПП361
A83: 4014 | B83: ПК341
A84: 4014 | B84: ПК342
A85: 4014 | B85: ПК351
A86: 4014 | B86: ПК352
A87: 4014 | B87: ПК361
A88: 4014 | B88: ПК362
A89: 4014 | B89: ВВП1
A90: 4014 | B90: ВВП2
A91: 4014 | B91: ВРВ1
A92: 4014 | B92: ВРН1
A93: 4014 | B93: ВРС1
A94: 4014 | B94: РС1
A95: 4014 | B95: РС2
A96: 4014 | B96: ВН1
A97: 4014 | B97: В1
A98: 4014 | B98: В2
A99: 4014 | B99: В5
A100: 4014 | B100: В6
A101: 4014 | B101: Н1
A102: 4014 | B102: Н2
A103: 4014 | B103: Н3
A104: 4014 | B104: Н3-1
A105: 4014 | B105: Н7
A106: 4014 | B106: Н8
A107: 4041 | B107: Б301
A108: 4041 | B108: Б302
A109: 4041 | B109: Б303
A110: 4041 | B110: Б304
A111: 4041 | B111: Б311
A112: 4041 | B112: Б312
A113: 4041 | B113: Б313
A114: 4041 | B114: Б314
A115: 4041 | B115: Б321
A116: 4041 | B116: Б322
A117: 4041 | B117: Б331
A118: 4041 | B118: Б332
A119: 4041 | B119: Б333
A120: 4041 | B120: Б334
A121: 4041 | B121: ПП301
A122: 4041 | B122: ПП311
A123: 4041 | B123: ПП321
A124: 4041 | B124: ПП331
A125: 4041 | B125: ПК301
A126: 4041 | B126: ПК302
A127: 4041 | B127: ПК311
A128: 4041 | B128: ПК312
A129: 4041 | B129: ПК331
A130: 4041 | B130: ПК332
A131: 4041 | B131: ПК322
A132: 4041 | B132: ПК321
A133: 4041 | B133: П3
A134: 4041 | B134: П4
A135: 4041 | B135: ВВП1
A136: 4041 | B136: ВВП2
A137: 4041 | B137: ВВП3
A138: 4041 | B138: ВВП4
A139: 4041 | B139: ВРВ1
A140: 4041 | B140: ВРВ2
A141: 4041 | B141: ВРН1
A142: 4041 | B142: ВРН2
A143: 4041 | B143: ВРС1
A144: 4041 | B144: ВРС2
A145: 4041 | B145: ВН1
A146: 4041 | B146: В7
A147: 4041 | B147: В8
A148: 4041 | B148: В9
A149: 4041 | B149: В10
A150: 4041 | B150: В5
A151: 4041 | B151: В6
A152: 4041 | B152: РС1
A153: 4041 | B153: РС2
A154: 4041 | B154: РС3
A155: 4041 | B155: РС4
A156: 4041 | B156: Н1
A157: 4041 | B157: Н2
A158: 4041 | B158: Н3
A159: 4041 | B159: Н3-1
A160: 4041 | B160: Н4
A161: 4041 | B161: Н6
A162: 4041 | B162: Н7
A163: 4041 | B163: Н8
A164: 4041 | B164: Н9
A165: 4041 | B165: Н17
A166: 4041 | B166: Н18
A167: 4041 | B167: ЛО32
A168: 4042 | B168: Б251
A169: 4042 | B169: Б261
A170: 4042 | B170: Б281
A171: 4042 | B171: Б252
A172: 4042 | B172: Б262
A173: 4042 | B173: Б282
A174: 4042 | B174: Б253
A175: 4042 | B175: Б263
A176: 4042 | B176: Б283
A177: 4042 | B177: Б254
A178: 4042 | B178: Б264
A179: 4042 | B179: Б284
A180: 4042 | B180: ПП261
A181: 4042 | B181: ПК261
A182: 4042 | B182: ПК271
A183: 4042 | B183: ПК281
A184: 4042 | B184: ПК262
A185: 4042 | B185: Н1
A186: 4042 | B186: Н2
A187: 4042 | B187: Н3
A188: 4042 | B188: Н4
A189: 4042 | B189: Н5
A190: 4042 | B190: ВВП1
A191: 4042 | B191: ВВП2
A192: 4042 | B192: ВН1
A193: 4042 | B193: В1
A194: 4042 | B194: В2
A195: 4042 | B195: В3
A196: 4042 | B196: В4
A197: 4042 | B197: В5
A198: 4042 | B198: В6
A199: 4042 | B199: В7
A200: 4042 | B200: РС1
... 44 more rows

Sheet Спецификация
D1: Количество | G1: Масса, кг
A2: Заказ | B2: Наименование | C2: Марка | D2: т | E2: н | F2: Длина | G2: 1 шт | H2: общий | I2: Площадь наружных поверхностей, м² | J2: Площадь внутренних поверхностей, м² | K2: Проверка
A3: 4013 | B3: Балка | C3: Б371 | D3: 1 | F3: 9563 | G3: 12895 | H3: =SUM(Спецификация[[#This Row],[т]:[н]])*Спецификация[[#This Row],[1 шт]] -> 12895 | I3: 50 | J3: 144 | K3: =SUMIFS(Приход[Масса],Приход[Заказ],Спецификация[[#This Row],[Заказ]],Приход[Наименование материалов и конструкций],Спецификация[[#This Row],[Наименование]],Приход[Марка элемента],Спецификация[[#This Row],[Марка]]) -> 0
A4: 4013 | B4: Балка | C4: Б372 | D4: 1 | F4: 9542 | G4: 11955 | H4: =SUM(Спецификация[[#This Row],[т]:[н]])*Спецификация[[#This Row],[1 шт]] -> 11955 | I4: 52 | J4: 132 | K4: =SUMIFS(Приход[Масса],Приход[Заказ],Спецификация[[#This Row],[Заказ]],Приход[Наименование материалов и конструкций],Спецификация[[#This Row],[Наименование]],Приход[Марка элемента],Спецификация[[#This Row],[Марка]]) -> 0
A5: 4013 | B5: Балка | C5: Б373 | D5: 1 | F5: 9469 | G5: 11884 | H5: =SUM(Спецификация[[#This Row],[т]:[н]])*Спецификация[[#This Row],[1 шт]] -> 11884 | I5: 50 | J5: 131 | K5: =SUMIFS(Приход[Масса],Приход[Заказ],Спецификация[[#This Row],[Заказ]],Приход[Наименование материалов и конструкций],Спецификация[[#This Row],[Наименование]],Приход[Марка элемента],Спецификация[[#This Row],[Марка]]) -> 0
A6: 4013 | B6: Балка | C6: Б374 | D6: 1 | F6: 9446 | G6: 12736 | H6: =SUM(Спецификация[[#This Row],[т]:[н]])*Спецификация[[#This Row],[1 шт]] -> 12736 | I6: 49.3 | J6: 142.2 | K6: =SUMIFS(Приход[Масса],Приход[Заказ],Спецификация[[#This Row],[Заказ]],Приход[Наименование материалов и конструкций],Спецификация[[#This Row],[Наименование]],Приход[Марка элемента],Спецификация[[#This Row],[Марка]]) -> 0
A7: 4013 | B7: Балка | C7: Б381 | D7: 1 | F7: 9563 | G7: 12895 | H7: =SUM(Спецификация[[#This Row],[т]:[н]])*Спецификация[[#This Row],[1 шт]] -> 12895 | I7: 50 | J7: 144 | K7: =SUMIFS(Приход[Масса],Приход[Заказ],Спецификация[[#This Row],[Заказ]],Приход[Наименование материалов и конструкций],Спецификация[[#This Row],[Наименование]],Приход[Марка элемента],Спецификация[[#This Row],[Марка]]) -> 0
A8: 4013 | B8: Балка | C8: Б382 | D8: 1 | F8: 9542 | G8: 11955 | H8: =SUM(Спецификация[[#This Row],[т]:[н]])*Спецификация[[#This Row],[1 шт]] -> 11955 | I8: 52 | J8: 132 | K8: =SUMIFS(Приход[Масса],Приход[Заказ],Спецификация[[#This Row],[Заказ]],Приход[Наименование материалов и конструкций],Спецификация[[#This Row],[Наименование]],Приход[Марка элемента],Спецификация[[#This Row],[Марка]]) -> 0
A9: 4013 | B9: Балка | C9: Б383 | D9: 1 | F9: 9469 | G9: 11884 | H9: =SUM(Спецификация[[#This Row],[т]:[н]])*Спецификация[[#This Row],[1 шт]] -> 11884 | I9: 50 | J9: 131 | K9: =SUMIFS(Приход[Масса],Приход[Заказ],Спецификация[[#This Row],[Заказ]],Приход[Наименование материалов и конструкций],Спецификация[[#This Row],[Наименование]],Приход[Марка элемента],Спецификация[[#This Row],[Марка]]) -> 0
A10: 4013 | B10: Балка | C10: Б384 | D10: 1 | F10: 9446 | G10: 12736 | H10: =SUM(Спецификация[[#This Row],[т]:[н]])*Спецификация[[#This Row],[1 шт]] -> 12736 | I10: 49.3 | J10: 142.2 | K10: =SUMIFS(Приход[Масса],Приход[Заказ],Спецификация[[#This Row],[Заказ]],Приход[Наименование материалов и конструкций],Спецификация[[#This Row],[Наименование]],Приход[Марка элемента],Спецификация[[#This Row],[Марка]]) -> 0
A11: 4013 | B11: Балка | C11: Б391 | D11: 1 | F11: 9565 | G11: 12586 | H11: =SUM(Спецификация[[#This Row],[т]:[н]])*Спецификация[[#This Row],[1 шт]] -> 12586 | I11: 50 | J11: 144 | K11: =SUMIFS(Приход[Масса],Приход[Заказ],Спецификация[[#This Row],[Заказ]],Приход[Наименование материалов и конструкций],Спецификация[[#This Row],[Наименование]],Приход[Марка элемента],Спецификация[[#This Row],[Марка]]) -> 0
A12: 4013 | B12: Балка | C12: Б392 | D12: 1 | F12: 9544 | G12: 11619 | H12: =SUM(Спецификация[[#This Row],[т]:[н]])*Спецификация[[#This Row],[1 шт]] -> 11619 | I12: 52 | J12: 132 | K12: =SUMIFS(Приход[Масса],Приход[Заказ],Спецификация[[#This Row],[Заказ]],Приход[Наименование материалов и конструкций],Спецификация[[#This Row],[Наименование]],Приход[Марка элемента],Спецификация[[#This Row],[Марка]]) -> 0
A13: 4013 | B13: Балка | C13: Б393 | D13: 1 | F13: 9470 | G13: 11550 | H13: =SUM(Спецификация[[#This Row],[т]:[н]])*Спецификация[[#This Row],[1 шт]] -> 11550 | I13: 50 | J13: 131 | K13: =SUMIFS(Приход[Масса],Приход[Заказ],Спецификация[[#This Row],[Заказ]],Приход[Наименование материалов и конструкций],Спецификация[[#This Row],[Наименование]],Приход[Марка элемента],Спецификация[[#This Row],[Марка]]) -> 0
A14: 4013 | B14: Балка | C14: Б394 | D14: 1 | F14: 9448 | G14: 12429 | H14: =SUM(Спецификация[[#This Row],[т]:[н]])*Спецификация[[#This Row],[1 шт]] -> 12429 | I14: 49.3 | J14: 142.2 | K14: =SUMIFS(Приход[Масса],Приход[Заказ],Спецификация[[#This Row],[Заказ]],Приход[Наименование материалов и конструкций],Спецификация[[#This Row],[Наименование]],Приход[Марка элемента],Спецификация[[#This Row],[Марка]]) -> 0
A15: 4013 | B15: Балка | C15: Б401 | D15: 1 | F15: 5343 | G15: 6438 | H15: =SUM(Спецификация[[#This Row],[т]:[н]])*Спецификация[[#This Row],[1 шт]] -> 6438 | I15: 27 | J15: 74.5 | K15: =SUMIFS(Приход[Масса],Приход[Заказ],Спецификация[[#This Row],[Заказ]],Приход[Наименование материалов и конструкций],Спецификация[[#This Row],[Наименование]],Приход[Марка элемента],Спецификация[[#This Row],[Марка]]) -> 0
A16: 4013 | B16: Балка | C16: Б402 | D16: 1 | F16: 5331 | G16: 5945 | H16: =SUM(Спецификация[[#This Row],[т]:[н]])*Спецификация[[#This Row],[1 шт]] -> 5945 | I16: 27.2 | J16: 68.3 | K16: =SUMIFS(Приход[Масса],Приход[Заказ],Спецификация[[#This Row],[Заказ]],Приход[Наименование материалов и конструкций],Спецификация[[#This Row],[Наименование]],Приход[Марка элемента],Спецификация[[#This Row],[Марка]]) -> 0
A17: 4013 | B17: Балка | C17: Б403 | D17: 1 | F17: 5291 | G17: 5911 | H17: =SUM(Спецификация[[#This Row],[т]:[н]])*Спецификация[[#This Row],[1 шт]] -> 5911 | I17: 27.2 | J17: 68 | K17: =SUMIFS(Приход[Масса],Приход[Заказ],Спецификация[[#This Row],[Заказ]],Приход[Наименование материалов и конструкций],Спецификация[[#This Row],[Наименование]],Приход[Марка элемента],Спецификация[[#This Row],[Марка]]) -> 0
A18: 4013 | B18: Балка | C18: Б404 | D18: 1 | F18: 5279 | G18: 6356 | H18: =SUM(Спецификация[[#This Row],[т]:[н]])*Спецификация[[#This Row],[1 шт]] -> 6356 | I18: 27 | J18: 74 | K18: =SUMIFS(Приход[Масса],Приход[Заказ],Спецификация[[#This Row],[Заказ]],Приход[Наименование материалов и конструкций],Спецификация[[#This Row],[Наименование]],Приход[Марка элемента],Спецификация[[#This Row],[Марка]]) -> 0
A19: 4013 | B19: Балка | C19: Б411 | D19: 1 | F19: 5349 | G19: 6713 | H19: =SUM(Спецификация[[#This Row],[т]:[н]])*Спецификация[[#This Row],[1 шт]] -> 6713 | I19: 24 | J19: 75 | K19: =SUMIFS(Приход[Масса],Приход[Заказ],Спецификация[[#This Row],[Заказ]],Приход[Наименование материалов и конструкций],Спецификация[[#This Row],[Наименование]],Приход[Марка элемента],Спецификация[[#This Row],[Марка]]) -> 0
A20: 4013 | B20: Балка | C20: Б412 | D20: 1 | F20: 5334 | G20: 6187 | H20: =SUM(Спецификация[[#This Row],[т]:[н]])*Спецификация[[#This Row],[1 шт]] -> 6187 | K20: =SUMIFS(Приход[Масса],Приход[Заказ],Спецификация[[#This Row],[Заказ]],Приход[Наименование материалов и конструкций],Спецификация[[#This Row],[Наименование]],Приход[Марка элемента],Спецификация[[#This Row],[Марка]]) -> 0
A21: 4013 | B21: Балка | C21: Б413 | D21: 1 | F21: 5282 | G21: 6135 | H21: =SUM(Спецификация[[#This Row],[т]:[н]])*Спецификация[[#This Row],[1 шт]] -> 6135 | I21: 25 | J21: 67.7 | K21: =SUMIFS(Приход[Масса],Приход[Заказ],Спецификация[[#This Row],[Заказ]],Приход[Наименование материалов и конструкций],Спецификация[[#This Row],[Наименование]],Приход[Марка элемента],Спецификация[[#This Row],[Марка]]) -> 0
A22: 4013 | B22: Балка | C22: Б414 | D22: 1 | F22: 5266 | G22: 6598 | H22: =SUM(Спецификация[[#This Row],[т]:[н]])*Спецификация[[#This Row],[1 шт]] -> 6598 | I22: 26.5 | J22: 73.6 | K22: =SUMIFS(Приход[Масса],Приход[Заказ],Спецификация[[#This Row],[Заказ]],Приход[Наименование материалов и конструкций],Спецификация[[#This Row],[Наименование]],Приход[Марка элемента],Спецификация[[#This Row],[Марка]]) -> 0
A23: 4013 | B23: Балка | C23: Б421 | D23: 1 | F23: 5392 | G23: 10606 | H23: =SUM(Спецификация[[#This Row],[т]:[н]])*Спецификация[[#This Row],[1 шт]] -> 10606 | I23: 10 | K23: =SUMIFS(Приход[Масса],Приход[Заказ],Спецификация[[#This Row],[Заказ]],Приход[Наименование материалов и конструкций],Спецификация[[#This Row],[Наименование]],Приход[Марка элемента],Спецификация[[#This Row],[Марка]]) -> 0
A24: 4013 | B24: Балка | C24: Б422 | D24: 1 | F24: 5392 | G24: 10606 | H24: =SUM(Спецификация[[#This Row],[т]:[н]])*Спецификация[[#This Row],[1 шт]] -> 10606 | I24: 10 | K24: =SUMIFS(Приход[Масса],Приход[Заказ],Спецификация[[#This Row],[Заказ]],Приход[Наименование материалов и конструкций],Спецификация[[#This Row],[Наименование]],Приход[Марка элемента],Спецификация[[#This Row],[Марка]]) -> 0
A25: 4013 | B25: Ортотропная плита | C25: ПП371 | D25: 1 | F25: 8715 | G25: 4088 | H25: =SUM(Спецификация[[#This Row],[т]:[н]])*Спецификация[[#This Row],[1 шт]] -> 4088 | K25: =SUMIFS(Приход[Масса],Приход[Заказ],Спецификация[[#This Row],[Заказ]],Приход[Наименование материалов и конструкций],Спецификация[[#This Row],[Наименование]],Приход[Марка элемента],Спецификация[[#This Row],[Марка]]) -> 0
A26: 4013 | B26: Ортотропная плита | C26: ПП381 | D26: 1 | F26: 8715 | G26: 4088 | H26: =SUM(Спецификация[[#This Row],[т]:[н]])*Спецификация[[#This Row],[1 шт]] -> 4088 | K26: =SUMIFS(Приход[Масса],Приход[Заказ],Спецификация[[#This Row],[Заказ]],Приход[Наименование материалов и конструкций],Спецификация[[#This Row],[Наименование]],Приход[Марка элемента],Спецификация[[#This Row],[Марка]]) -> 0
A27: 4013 | B27: Ортотропная плита | C27: ПП391 | D27: 1 | F27: 8715 | G27: 4088 | H27: =SUM(Спецификация[[#This Row],[т]:[н]])*Спецификация[[#This Row],[1 шт]] -> 4088 | K27: =SUMIFS(Приход[Масса],Приход[Заказ],Спецификация[[#This Row],[Заказ]],Приход[Наименование материалов и конструкций],Спецификация[[#This Row],[Наименование]],Приход[Марка элемента],Спецификация[[#This Row],[Марка]]) -> 0
A28: 4013 | B28: Ортотропная плита | C28: ПП401 | D28: 1 | F28: 4511 | G28: 2101 | H28: =SUM(Спецификация[[#This Row],[т]:[н]])*Спецификация[[#This Row],[1 шт]] -> 2101 | K28: =SUMIFS(Приход[Масса],Приход[Заказ],Спецификация[[#This Row],[Заказ]],Приход[Наименование материалов и конструкций],Спецификация[[#This Row],[Наименование]],Приход[Марка элемента],Спецификация[[#This Row],[Марка]]) -> 0
A29: 4013 | B29: Ортотропная плита | C29: ПП411 | D29: 1 | F29: 4502 | G29: 2099 | H29: =SUM(Спецификация[[#This Row],[т]:[н]])*Спецификация[[#This Row],[1 шт]] -> 2099 | K29: =SUMIFS(Приход[Масса],Приход[Заказ],Спецификация[[#This Row],[Заказ]],Приход[Наименование материалов и конструкций],Спецификация[[#This Row],[Наименование]],Приход[Марка элемента],Спецификация[[#This Row],[Марка]]) -> 0
A30: 4013 | B30: Ортотропная плита | C30: ПП421 | D30: 1 | F30: 2845 | G30: 2829 | H30: =SUM(Спецификация[[#This Row],[т]:[н]])*Спецификация[[#This Row],[1 шт]] -> 2829 | K30: =SUMIFS(Приход[Масса],Приход[Заказ],Спецификация[[#This Row],[Заказ]],Приход[Наименование материалов и конструкций],Спецификация[[#This Row],[Наименование]],Приход[Марка элемента],Спецификация[[#This Row],[Марка]]) -> 0
A31: 4013 | B31: Консольная плита | C31: ПК371 | D31: 1 | F31: 9682 | G31: 5287 | H31: =SUM(Спецификация[[#This Row],[т]:[н]])*Спецификация[[#This Row],[1 шт]] -> 5287 | K31: =SUMIFS(Приход[Масса],Приход[Заказ],Спецификация[[#This Row],[Заказ]],Приход[Наименование материалов и конструкций],Спецификация[[#This Row],[Наименование]],Приход[Марка элемента],Спецификация[[#This Row],[Марка]]) -> 0
A32: 4013 | B32: Консольная плита | C32: ПК372 | D32: 1 | F32: 9470 | G32: 3418 | H32: =SUM(Спецификация[[#This Row],[т]:[н]])*Спецификация[[#This Row],[1 шт]] -> 3418 | I32: 34 | K32: =SUMIFS(Приход[Масса],Приход[Заказ],Спецификация[[#This Row],[Заказ]],Приход[Наименование материалов и конструкций],Спецификация[[#This Row],[Наименование]],Приход[Марка элемента],Спецификация[[#This Row],[Марка]]) -> 0
A33: 4013 | B33: Консольная плита | C33: ПК381 | D33: 1 | F33: 9682 | G33: 5318 | H33: =SUM(Спецификация[[#This Row],[т]:[н]])*Спецификация[[#This Row],[1 шт]] -> 5318 | K33: =SUMIFS(Приход[Масса],Приход[Заказ],Спецификация[[#This Row],[Заказ]],Приход[Наименование материалов и конструкций],Спецификация[[#This Row],[Наименование]],Приход[Марка элемента],Спецификация[[#This Row],[Марка]]) -> 0
A34: 4013 | B34: Консольная плита | C34: ПК382 | D34: 1 | F34: 9470 | G34: 3418 | H34: =SUM(Спецификация[[#This Row],[т]:[н]])*Спецификация[[#This Row],[1 шт]] -> 3418 | I34: 34 | K34: =SUMIFS(Приход[Масса],Приход[Заказ],Спецификация[[#This Row],[Заказ]],Приход[Наименование материалов и конструкций],Спецификация[[#This Row],[Наименование]],Приход[Марка элемента],Спецификация[[#This Row],[Марка]]) -> 0
A35: 4013 | B35: Консольная плита | C35: ПК391 | D35: 1 | F35: 9682 | G35: 5318 | H35: =SUM(Спецификация[[#This Row],[т]:[н]])*Спецификация[[#This Row],[1 шт]] -> 5318 | I35: 62 | K35: =SUMIFS(Приход[Масса],Приход[Заказ],Спецификация[[#This Row],[Заказ]],Приход[Наименование материалов и конструкций],Спецификация[[#This Row],[Наименование]],Приход[Марка элемента],Спецификация[[#This Row],[Марка]]) -> 0
A36: 4013 | B36: Консольная плита | C36: ПК392 | D36: 1 | F36: 9470 | G36: 3418 | H36: =SUM(Спецификация[[#This Row],[т]:[н]])*Спецификация[[#This Row],[1 шт]] -> 3418 | I36: 34 | K36: =SUMIFS(Приход[Масса],Приход[Заказ],Спецификация[[#This Row],[Заказ]],Приход[Наименование материалов и конструкций],Спецификация[[#This Row],[Наименование]],Приход[Марка элемента],Спецификация[[#This Row],[Марка]]) -> 0
A37: 4013 | B37: Консольная плита | C37: ПК401 | D37: 1 | F37: 5430 | G37: 2879 | H37: =SUM(Спецификация[[#This Row],[т]:[н]])*Спецификация[[#This Row],[1 шт]] -> 2879 | I37: 38 | K37: =SUMIFS(Приход[Масса],Приход[Заказ],Спецификация[[#This Row],[Заказ]],Приход[Наименование материалов и конструкций],Спецификация[[#This Row],[Наименование]],Приход[Марка элемента],Спецификация[[#This Row],[Марка]]) -> 0
A38: 4013 | B38: Консольная плита | C38: ПК402 | D38: 1 | F38: 5312 | G38: 1859 | H38: =SUM(Спецификация[[#This Row],[т]:[н]])*Спецификация[[#This Row],[1 шт]] -> 1859 | I38: 26 | K38: =SUMIFS(Приход[Масса],Приход[Заказ],Спецификация[[#This Row],[Заказ]],Приход[Наименование материалов и конструкций],Спецификация[[#This Row],[Наименование]],Приход[Марка элемента],Спецификация[[#This Row],[Марка]]) -> 0
A39: 4013 | B39: Консольная плита | C39: ПК411 | D39: 1 | F39: 5446 | G39: 2888 | H39: =SUM(Спецификация[[#This Row],[т]:[н]])*Спецификация[[#This Row],[1 шт]] -> 2888 | I39: 39 | K39: =SUMIFS(Приход[Масса],Приход[Заказ],Спецификация[[#This Row],[Заказ]],Приход[Наименование материалов и конструкций],Спецификация[[#This Row],[Наименование]],Приход[Марка элемента],Спецификация[[#This Row],[Марка]]) -> 0
A40: 4013 | B40: Консольная плита | C40: ПК412 | D40: 1 | F40: 5294 | G40: 1852 | H40: =SUM(Спецификация[[#This Row],[т]:[н]])*Спецификация[[#This Row],[1 шт]] -> 1852 | I40: 26 | K40: =SUMIFS(Приход[Масса],Приход[Заказ],Спецификация[[#This Row],[Заказ]],Приход[Наименование материалов и конструкций],Спецификация[[#This Row],[Наименование]],Приход[Марка элемента],Спецификация[[#This Row],[Марка]]) -> 0
A41: 4013 | B41: Консольная плита | C41: ПК421 | D41: 1 | F41: 2995 | G41: 1838 | H41: =SUM(Спецификация[[#This Row],[т]:[н]])*Спецификация[[#This Row],[1 шт]] -> 1838 | I41: 26 | K41: =SUMIFS(Приход[Масса],Приход[Заказ],Спецификация[[#This Row],[Заказ]],Приход[Наименование материалов и конструкций],Спецификация[[#This Row],[Наименование]],Приход[Марка элемента],Спецификация[[#This Row],[Марка]]) -> 0
A42: 4013 | B42: Консольная плита | C42: ПК422 | D42: 1 | F42: 2995 | G42: 1187 | H42: =SUM(Спецификация[[#This Row],[т]:[н]])*Спецификация[[#This Row],[1 шт]] -> 1187 | I42: 18 | K42: =SUMIFS(Приход[Масса],Приход[Заказ],Спецификация[[#This Row],[Заказ]],Приход[Наименование материалов и конструкций],Спецификация[[#This Row],[Наименование]],Приход[Марка элемента],Спецификация[[#This Row],[Марка]]) -> 0
A43: 4013 | B43: Прокладка | C43: П1 | D43: 2 | F43: 320 | G43: 7 | H43: =SUM(Спецификация[[#This Row],[т]:[н]])*Спецификация[[#This Row],[1 шт]] -> 14 | K43: =SUMIFS(Приход[Масса],Приход[Заказ],Спецификация[[#This Row],[Заказ]],Приход[Наименование материалов и конструкций],Спецификация[[#This Row],[Наименование]],Приход[Марка элемента],Спецификация[[#This Row],[Марка]]) -> 0
A44: 4013 | B44: Прокладка | C44: П2 | D44: 4 | F44: 170 | G44: 2 | H44: =SUM(Спецификация[[#This Row],[т]:[н]])*Спецификация[[#This Row],[1 шт]] -> 8 | K44: =SUMIFS(Приход[Масса],Приход[Заказ],Спецификация[[#This Row],[Заказ]],Приход[Наименование материалов и конструкций],Спецификация[[#This Row],[Наименование]],Приход[Марка элемента],Спецификация[[#This Row],[Марка]]) -> 0
A45: 4013 | B45: Можтажное ребро стенки | C45: РС1 | D45: 10 | F45: 2119 | G45: 63 | H45: =SUM(Спецификация[[#This Row],[т]:[н]])*Спецификация[[#This Row],[1 шт]] -> 630 | K45: =SUMIFS(Приход[Масса],Приход[Заказ],Спецификация[[#This Row],[Заказ]],Приход[Наименование материалов и конструкций],Спецификация[[#This Row],[Наименование]],Приход[Марка элемента],Спецификация[[#This Row],[Марка]]) -> 0
A46: 4013 | B46: Можтажное ребро стенки | C46: РС2 | D46: 10 | F46: 2071 | G46: 60 | H46: =SUM(Спецификация[[#This Row],[т]:[н]])*Спецификация[[#This Row],[1 шт]] -> 600 | K46: =SUMIFS(Приход[Масса],Приход[Заказ],Спецификация[[#This Row],[Заказ]],Приход[Наименование материалов и конструкций],Спецификация[[#This Row],[Наименование]],Приход[Марка элемента],Спецификация[[#This Row],[Марка]]) -> 0
A47: 4013 | B47: Вставка по верхнему поясу | C47: ВПП1 | D47: 5 | E47: 5 | F47: 5442 | G47: 810 | H47: =SUM(Спецификация[[#This Row],[т]:[н]])*Спецификация[[#This Row],[1 шт]] -> 8100 | K47: =SUMIFS(Приход[Масса],Приход[Заказ],Спецификация[[#This Row],[Заказ]],Приход[Наименование материалов и конструкций],Спецификация[[#This Row],[Наименование]],Приход[Марка элемента],Спецификация[[#This Row],[Марка]]) -> 0
A48: 4013 | B48: Вставка по верхнему поясу | C48: ВПП2 | D48: 5 | F48: 2142 | G48: 330 | H48: =SUM(Спецификация[[#This Row],[т]:[н]])*Спецификация[[#This Row],[1 шт]] -> 1650 | K48: =SUMIFS(Приход[Масса],Приход[Заказ],Спецификация[[#This Row],[Заказ]],Приход[Наименование материалов и конструкций],Спецификация[[#This Row],[Наименование]],Приход[Марка элемента],Спецификация[[#This Row],[Марка]]) -> 0
A49: 4013 | B49: Вставка по ребрам верхнего пояса | C49: ВРВ1 | D49: 50 | F49: 444 | G49: 3 | H49: =SUM(Спецификация[[#This Row],[т]:[н]])*Спецификация[[#This Row],[1 шт]] -> 150 | K49: =SUMIFS(Приход[Масса],Приход[Заказ],Спецификация[[#This Row],[Заказ]],Приход[Наименование материалов и конструкций],Спецификация[[#This Row],[Наименование]],Приход[Марка элемента],Спецификация[[#This Row],[Марка]]) -> 0
A50: 4013 | B50: Вставка по ребрам нижнего пояса | C50: ВРН1 | D50: 40 | F50: 180 | G50: 8 | H50: =SUM(Спецификация[[#This Row],[т]:[н]])*Спецификация[[#This Row],[1 шт]] -> 320 | K50: =SUMIFS(Приход[Масса],Приход[Заказ],Спецификация[[#This Row],[Заказ]],Приход[Наименование материалов и конструкций],Спецификация[[#This Row],[Наименование]],Приход[Марка элемента],Спецификация[[#This Row],[Марка]]) -> 0
A51: 4013 | B51: Вставка ребер по стенке | C51: ВРС1 | D51: 80 | F51: 900 | G51: 18 | H51: =SUM(Спецификация[[#This Row],[т]:[н]])*Спецификация[[#This Row],[1 шт]] -> 1440 | K51: =SUMIFS(Приход[Масса],Приход[Заказ],Спецификация[[#This Row],[Заказ]],Приход[Наименование материалов и конструкций],Спецификация[[#This Row],[Наименование]],Приход[Марка элемента],Спецификация[[#This Row],[Марка]]) -> 0
A52: 4013 | B52: Вставка | C52: ВН1 | D52: 32 | F52: 530 | G52: 38 | H52: =SUM(Спецификация[[#This Row],[т]:[н]])*Спецификация[[#This Row],[1 шт]] -> 1216 | K52: =SUMIFS(Приход[Масса],Приход[Заказ],Спецификация[[#This Row],[Заказ]],Приход[Наименование материалов и конструкций],Спецификация[[#This Row],[Наименование]],Приход[Марка элемента],Спецификация[[#This Row],[Марка]]) -> 0
A53: 4013 | B53: Вставка | C53: В1 | D53: 4 | E53: 4 | F53: 2876 | G53: 156 | H53: =SUM(Спецификация[[#This Row],[т]:[н]])*Спецификация[[#This Row],[1 шт]] -> 1248 | K53: =SUMIFS(Приход[Масса],Приход[Заказ],Спецификация[[#This Row],[Заказ]],Приход[Наименование материалов и конструкций],Спецификация[[#This Row],[Наименование]],Приход[Марка элемента],Спецификация[[#This Row],[Марка]]) -> 0
A54: 4013 | B54: Вставка | C54: В2 | D54: 8 | F54: 2813 | G54: 152 | H54: =SUM(Спецификация[[#This Row],[т]:[н]])*Спецификация[[#This Row],[1 шт]] -> 1216 | K54: =SUMIFS(Приход[Масса],Приход[Заказ],Спецификация[[#This Row],[Заказ]],Приход[Наименование материалов и конструкций],Спецификация[[#This Row],[Наименование]],Приход[Марка элемента],Спецификация[[#This Row],[Марка]]) -> 0
A55: 4013 | B55: Вставка | C55: В3 | D55: 1 | E55: 1 | F55: 2876 | G55: 222 | H55: =SUM(Спецификация[[#This Row],[т]:[н]])*Спецификация[[#This Row],[1 шт]] -> 444 | K55: =SUMIFS(Приход[Масса],Приход[Заказ],Спецификация[[#This Row],[Заказ]],Приход[Наименование материалов и конструкций],Спецификация[[#This Row],[Наименование]],Приход[Марка элемента],Спецификация[[#This Row],[Марка]]) -> 0
A56: 4013 | B56: Вставка | C56: В4 | D56: 2 | F56: 2813 | G56: 217 | H56: =SUM(Спецификация[[#This Row],[т]:[н]])*Спецификация[[#This Row],[1 шт]] -> 434 | K56: =SUMIFS(Приход[Масса],Приход[Заказ],Спецификация[[#This Row],[Заказ]],Приход[Наименование материалов и конструкций],Спецификация[[#This Row],[Наименование]],Приход[Марка элемента],Спецификация[[#This Row],[Марка]]) -> 0
A57: 4013 | B57: Вставка | C57: В5 | D57: 10 | F57: 492 | G57: 15 | H57: =SUM(Спецификация[[#This Row],[т]:[н]])*Спецификация[[#This Row],[1 шт]] -> 150 | K57: =SUMIFS(Приход[Масса],Приход[Заказ],Спецификация[[#This Row],[Заказ]],Приход[Наименование материалов и конструкций],Спецификация[[#This Row],[Наименование]],Приход[Марка элемента],Спецификация[[#This Row],[Марка]]) -> 0
A58: 4013 | B58: Вставка | C58: В6 | D58: 10 | F58: 492 | G58: 11 | H58: =SUM(Спецификация[[#This Row],[т]:[н]])*Спецификация[[#This Row],[1 шт]] -> 110 | K58: =SUMIFS(Приход[Масса],Приход[Заказ],Спецификация[[#This Row],[Заказ]],Приход[Наименование материалов и конструкций],Спецификация[[#This Row],[Наименование]],Приход[Марка элемента],Спецификация[[#This Row],[Марка]]) -> 0
A59: 4013 | B59: Накладка | C59: Н1 | D59: 128 | F59: 170 | G59: 2 | H59: =SUM(Спецификация[[#This Row],[т]:[н]])*Спецификация[[#This Row],[1 шт]] -> 256 | K59: =SUMIFS(Приход[Масса],Приход[Заказ],Спецификация[[#This Row],[Заказ]],Приход[Наименование материалов и конструкций],Спецификация[[#This Row],[Наименование]],Приход[Марка элемента],Спецификация[[#This Row],[Марка]]) -> 0
A60: 4013 | B60: Накладка | C60: Н2 | D60: 204 | F60: 560 | G60: 7 | H60: =SUM(Спецификация[[#This Row],[т]:[н]])*Спецификация[[#This Row],[1 шт]] -> 1428 | K60: =SUMIFS(Приход[Масса],Приход[Заказ],Спецификация[[#This Row],[Заказ]],Приход[Наименование материалов и конструкций],Спецификация[[#This Row],[Наименование]],Приход[Марка элемента],Спецификация[[#This Row],[Марка]]) -> 0
A61: 4013 | B61: Накладка | C61: Н3 | D61: 140 | F61: 330 | G61: 4 | H61: =SUM(Спецификация[[#This Row],[т]:[н]])*Спецификация[[#This Row],[1 шт]] -> 560 | K61: =SUMIFS(Приход[Масса],Приход[Заказ],Спецификация[[#This Row],[Заказ]],Приход[Наименование материалов и конструкций],Спецификация[[#This Row],[Наименование]],Приход[Марка элемента],Спецификация[[#This Row],[Марка]]) -> 0
A62: 4013 | B62: Накладка | C62: Н3-1 | D62: 70 | F62: 360 | G62: 9 | H62: =SUM(Спецификация[[#This Row],[т]:[н]])*Спецификация[[#This Row],[1 шт]] -> 630 | K62: =SUMIFS(Приход[Масса],Приход[Заказ],Спецификация[[#This Row],[Заказ]],Приход[Наименование материалов и конструкций],Спецификация[[#This Row],[Наименование]],Приход[Марка элемента],Спецификация[[#This Row],[Марка]]) -> 0
A63: 4013 | B63: Накладка | C63: Н4 | D63: 4 | F63: 660 | G63: 8 | H63: =SUM(Спецификация[[#This Row],[т]:[н]])*Спецификация[[#This Row],[1 шт]] -> 32 | K63: =SUMIFS(Приход[Масса],Приход[Заказ],Спецификация[[#This Row],[Заказ]],Приход[Наименование материалов и конструкций],Спецификация[[#This Row],[Наименование]],Приход[Марка элемента],Спецификация[[#This Row],[Марка]]) -> 0
A64: 4013 | B64: Накладка | C64: Н5 | D64: 4 | F64: 2320 | G64: 60 | H64: =SUM(Спецификация[[#This Row],[т]:[н]])*Спецификация[[#This Row],[1 шт]] -> 240 | K64: =SUMIFS(Приход[Масса],Приход[Заказ],Спецификация[[#This Row],[Заказ]],Приход[Наименование материалов и конструкций],Спецификация[[#This Row],[Наименование]],Приход[Марка элемента],Спецификация[[#This Row],[Марка]]) -> 0
A65: 4013 | B65: Накладка | C65: Н6 | D65: 4 | F65: 480 | G65: 6 | H65: =SUM(Спецификация[[#This Row],[т]:[н]])*Спецификация[[#This Row],[1 шт]] -> 24 | K65: =SUMIFS(Приход[Масса],Приход[Заказ],Спецификация[[#This Row],[Заказ]],Приход[Наименование материалов и конструкций],Спецификация[[#This Row],[Наименование]],Приход[Марка элемента],Спецификация[[#This Row],[Марка]]) -> 0
A66: 4013 | B66: Накладка | C66: Н7 | D66: 390 | E66: 390 | F66: 470 | G66: 7 | H66: =SUM(Спецификация[[#This Row],[т]:[н]])*Спецификация[[#This Row],[1 шт]] -> 5460 | K66: =SUMIFS(Приход[Масса],Приход[Заказ],Спецификация[[#This Row],[Заказ]],Приход[Наименование материалов и конструкций],Спецификация[[#This Row],[Наименование]],Приход[Марка элемента],Спецификация[[#This Row],[Марка]]) -> 0
A67: 4013 | B67: Накладка | C67: Н8 | D67: 50 | E67: 50 | F67: 640 | G67: 9 | H67: =SUM(Спецификация[[#This Row],[т]:[н]])*Спецификация[[#This Row],[1 шт]] -> 900 | K67: =SUMIFS(Приход[Масса],Приход[Заказ],Спецификация[[#This Row],[Заказ]],Приход[Наименование материалов и конструкций],Спецификация[[#This Row],[Наименование]],Приход[Марка элемента],Спецификация[[#This Row],[Марка]]) -> 0
A68: 4013 | B68: Опорный лист | C68: ЛО42 | D68: 2 | F68: 1060 | G68: 264 | H68: =SUM(Спецификация[[#This Row],[т]:[н]])*Спецификация[[#This Row],[1 шт]] -> 528 | K68: =SUMIFS(Приход[Масса],Приход[Заказ],Спецификация[[#This Row],[Заказ]],Приход[Наименование материалов и конструкций],Спецификация[[#This Row],[Наименование]],Приход[Марка элемента],Спецификация[[#This Row],[Марка]]) -> 0
A69: 4043 | B69: Балка | C69: Б221 | D69: 1 | E69: 1 | F69: 9452 | G69: 15354 | H69: =SUM(Спецификация[[#This Row],[т]:[н]])*Спецификация[[#This Row],[1 шт]] -> 30708 | K69: =SUMIFS(Приход[Масса],Приход[Заказ],Спецификация[[#This Row],[Заказ]],Приход[Наименование материалов и конструкций],Спецификация[[#This Row],[Наименование]],Приход[Марка элемента],Спецификация[[#This Row],[Марка]]) -> 0
A70: 4043 | B70: Балка | C70: Б231 | D70: 1 | E70: 1 | F70: 9492 | G70: 12974 | H70: =SUM(Спецификация[[#This Row],[т]:[н]])*Спецификация[[#This Row],[1 шт]] -> 25948 | I70: 212 | K70: =SUMIFS(Приход[Масса],Приход[Заказ],Спецификация[[#This Row],[Заказ]],Приход[Наименование материалов и конструкций],Спецификация[[#This Row],[Наименование]],Приход[Марка элемента],Спецификация[[#This Row],[Марка]]) -> 0
A71: 4043 | B71: Балка | C71: Б241 | D71: 1 | F71: 9537 | G71: 12305 | H71: =SUM(Спецификация[[#This Row],[т]:[н]])*Спецификация[[#This Row],[1 шт]] -> 12305 | I71: 212 | K71: =SUMIFS(Приход[Масса],Приход[Заказ],Спецификация[[#This Row],[Заказ]],Приход[Наименование материалов и конструкций],Спецификация[[#This Row],[Наименование]],Приход[Марка элемента],Спецификация[[#This Row],[Марка]]) -> 0
A72: 4043 | B72: Балка | C72: Б251 | D72: 1 | F72: 9560 | G72: 12258 | H72: =SUM(Спецификация[[#This Row],[т]:[н]])*Спецификация[[#This Row],[1 шт]] -> 12258 | I72: 212 | K72: =SUMIFS(Приход[Масса],Приход[Заказ],Спецификация[[#This Row],[Заказ]],Приход[Наименование материалов и конструкций],Спецификация[[#This Row],[Наименование]],Приход[Марка элемента],Спецификация[[#This Row],[Марка]]) -> 0
A73: 4043 | B73: Балка | C73: Б222 | D73: 1 | E73: 1 | F73: 9492 | G73: 14560 | H73: =SUM(Спецификация[[#This Row],[т]:[н]])*Спецификация[[#This Row],[1 шт]] -> 29120 | I73: 199 | K73: =SUMIFS(Приход[Масса],Приход[Заказ],Спецификация[[#This Row],[Заказ]],Приход[Наименование материалов и конструкций],Спецификация[[#This Row],[Наименование]],Приход[Марка элемента],Спецификация[[#This Row],[Марка]]) -> 0
A74: 4043 | B74: Балка | C74: Б232 | D74: 1 | E74: 1 | F74: 9492 | G74: 12139 | H74: =SUM(Спецификация[[#This Row],[т]:[н]])*Спецификация[[#This Row],[1 шт]] -> 24278 | I74: 204 | K74: =SUMIFS(Приход[Масса],Приход[Заказ],Спецификация[[#This Row],[Заказ]],Приход[Наименование материалов и конструкций],Спецификация[[#This Row],[Наименование]],Приход[Марка элемента],Спецификация[[#This Row],[Марка]]) -> 0
A75: 4043 | B75: Балка | C75: Б242 | D75: 1 | F75: 9524 | G75: 11308 | H75: =SUM(Спецификация[[#This Row],[т]:[н]])*Спецификация[[#This Row],[1 шт]] -> 11308 | I75: 198 | K75: =SUMIFS(Приход[Масса],Приход[Заказ],Спецификация[[#This Row],[Заказ]],Приход[Наименование материалов и конструкций],Спецификация[[#This Row],[Наименование]],Приход[Марка элемента],Спецификация[[#This Row],[Марка]]) -> 0
A76: 4043 | B76: Балка | C76: Б252 | D76: 1 | F76: 9540 | G76: 11290 | H76: =SUM(Спецификация[[#This Row],[т]:[н]])*Спецификация[[#This Row],[1 шт]] -> 11290 | I76: 200 | K76: =SUMIFS(Приход[Масса],Приход[Заказ],Спецификация[[#This Row],[Заказ]],Приход[Наименование материалов и конструкций],Спецификация[[#This Row],[Наименование]],Приход[Марка элемента],Спецификация[[#This Row],[Марка]]) -> 0
A77: 4043 | B77: Балка | C77: Б243 | D77: 1 | F77: 9479 | G77: 11266 | H77: =SUM(Спецификация[[#This Row],[т]:[н]])*Спецификация[[#This Row],[1 шт]] -> 11266 | I77: 198 | K77: =SUMIFS(Приход[Масса],Приход[Заказ],Спецификация[[#This Row],[Заказ]],Приход[Наименование материалов и конструкций],Спецификация[[#This Row],[Наименование]],Приход[Марка элемента],Спецификация[[#This Row],[Марка]]) -> 0
A78: 4043 | B78: Балка | C78: Б253 | D78: 1 | F78: 9466 | G78: 11223 | H78: =SUM(Спецификация[[#This Row],[т]:[н]])*Спецификация[[#This Row],[1 шт]] -> 11223 | I78: 200 | K78: =SUMIFS(Приход[Масса],Приход[Заказ],Спецификация[[#This Row],[Заказ]],Приход[Наименование материалов и конструкций],Спецификация[[#This Row],[Наименование]],Приход[Марка элемента],Спецификация[[#This Row],[Марка]]) -> 0
A79: 4043 | B79: Балка | C79: Б244 | D79: 1 | F79: 9464 | G79: 12215 | H79: =SUM(Спецификация[[#This Row],[т]:[н]])*Спецификация[[#This Row],[1 шт]] -> 12215 | I79: 212 | K79: =SUMIFS(Приход[Масса],Приход[Заказ],Спецификация[[#This Row],[Заказ]],Приход[Наименование материалов и конструкций],Спецификация[[#This Row],[Наименование]],Приход[Марка элемента],Спецификация[[#This Row],[Марка]]) -> 0
A80: 4043 | B80: Балка | C80: Б254 | D80: 1 | F80: 9444 | G80: 12082 | H80: =SUM(Спецификация[[#This Row],[т]:[н]])*Спецификация[[#This Row],[1 шт]] -> 12082 | K80: =SUMIFS(Приход[Масса],Приход[Заказ],Спецификация[[#This Row],[Заказ]],Приход[Наименование материалов и конструкций],Спецификация[[#This Row],[Наименование]],Приход[Марка элемента],Спецификация[[#This Row],[Марка]]) -> 0
A81: 4043 | B81: Консольная плита | C81: ПП221 | D81: 1 | F81: 8684 | G81: 4312 | H81: =SUM(Спецификация[[#This Row],[т]:[н]])*Спецификация[[#This Row],[1 шт]] -> 4312 | K81: =SUMIFS(Приход[Масса],Приход[Заказ],Спецификация[[#This Row],[Заказ]],Приход[Наименование материалов и конструкций],Спецификация[[#This Row],[Наименование]],Приход[Марка элемента],Спецификация[[#This Row],[Марка]]) -> 0
A82: 4043 | B82: Ортотропная плита | C82: ПП231 | D82: 1 | F82: 8684 | G82: 4089 | H82: =SUM(Спецификация[[#This Row],[т]:[н]])*Спецификация[[#This Row],[1 шт]] -> 4089 | K82: =SUMIFS(Приход[Масса],Приход[Заказ],Спецификация[[#This Row],[Заказ]],Приход[Наименование материалов и конструкций],Спецификация[[#This Row],[Наименование]],Приход[Марка элемента],Спецификация[[#This Row],[Марка]]) -> 0
A83: 4043 | B83: Ортотропная плита | C83: ПП241 | D83: 1 | F83: 8695 | G83: 4089 | H83: =SUM(Спецификация[[#This Row],[т]:[н]])*Спецификация[[#This Row],[1 шт]] -> 4089 | K83: =SUMIFS(Приход[Масса],Приход[Заказ],Спецификация[[#This Row],[Заказ]],Приход[Наименование материалов и конструкций],Спецификация[[#This Row],[Наименование]],Приход[Марка элемента],Спецификация[[#This Row],[Марка]]) -> 0
A84: 4043 | B84: Ортотропная плита | C84: ПП261 | D84: 1 | F84: 8698 | G84: 4088 | H84: =SUM(Спецификация[[#This Row],[т]:[н]])*Спецификация[[#This Row],[1 шт]] -> 4088 | K84: =SUMIFS(Приход[Масса],Приход[Заказ],Спецификация[[#This Row],[Заказ]],Приход[Наименование материалов и конструкций],Спецификация[[#This Row],[Наименование]],Приход[Марка элемента],Спецификация[[#This Row],[Марка]]) -> 0
A85: 4043 | B85: Консольная плита | C85: ПК221 | D85: 1 | F85: 9542 | G85: 5492 | H85: =SUM(Спецификация[[#This Row],[т]:[н]])*Спецификация[[#This Row],[1 шт]] -> 5492 | K85: =SUMIFS(Приход[Масса],Приход[Заказ],Спецификация[[#This Row],[Заказ]],Приход[Наименование материалов и конструкций],Спецификация[[#This Row],[Наименование]],Приход[Марка элемента],Спецификация[[#This Row],[Марка]]) -> 0
A86: 4043 | B86: Консольная плита | C86: ПК231 | D86: 1 | F86: 9542 | G86: 5257 | H86: =SUM(Спецификация[[#This Row],[т]:[н]])*Спецификация[[#This Row],[1 шт]] -> 5257 | K86: =SUMIFS(Приход[Масса],Приход[Заказ],Спецификация[[#This Row],[Заказ]],Приход[Наименование материалов и конструкций],Спецификация[[#This Row],[Наименование]],Приход[Марка элемента],Спецификация[[#This Row],[Марка]]) -> 0
A87: 4043 | B87: Консольная плита | C87: ПК241 | D87: 1 | F87: 9620 | G87: 5264 | H87: =SUM(Спецификация[[#This Row],[т]:[н]])*Спецификация[[#This Row],[1 шт]] -> 5264 | K87: =SUMIFS(Приход[Масса],Приход[Заказ],Спецификация[[#This Row],[Заказ]],Приход[Наименование материалов и конструкций],Спецификация[[#This Row],[Наименование]],Приход[Марка элемента],Спецификация[[#This Row],[Марка]]) -> 0
A88: 4043 | B88: Консольная плита | C88: ПК261 | D88: 1 | F88: 9664 | G88: 5280 | H88: =SUM(Спецификация[[#This Row],[т]:[н]])*Спецификация[[#This Row],[1 шт]] -> 5280 | K88: =SUMIFS(Приход[Масса],Приход[Заказ],Спецификация[[#This Row],[Заказ]],Приход[Наименование материалов и конструкций],Спецификация[[#This Row],[Наименование]],Приход[Марка элемента],Спецификация[[#This Row],[Марка]]) -> 0
A89: 4043 | B89: Консольная плита | C89: ПК222 | D89: 1 | F89: 9542 | G89: 3584 | H89: =SUM(Спецификация[[#This Row],[т]:[н]])*Спецификация[[#This Row],[1 шт]] -> 3584 | K89: =SUMIFS(Приход[Масса],Приход[Заказ],Спецификация[[#This Row],[Заказ]],Приход[Наименование материалов и конструкций],Спецификация[[#This Row],[Наименование]],Приход[Марка элемента],Спецификация[[#This Row],[Марка]]) -> 0
A90: 4043 | B90: Консольная плита | C90: ПК232 | D90: 1 | F90: 9542 | G90: 3422 | H90: =SUM(Спецификация[[#This Row],[т]:[н]])*Спецификация[[#This Row],[1 шт]] -> 3422 | K90: =SUMIFS(Приход[Масса],Приход[Заказ],Спецификация[[#This Row],[Заказ]],Приход[Наименование материалов и конструкций],Спецификация[[#This Row],[Наименование]],Приход[Марка элемента],Спецификация[[#This Row],[Марка]]) -> 0
A91: 4043 | B91: Консольная плита | C91: ПК242 | D91: 1 | F91: 9488 | G91: 3405 | H91: =SUM(Спецификация[[#This Row],[т]:[н]])*Спецификация[[#This Row],[1 шт]] -> 3405 | K91: =SUMIFS(Приход[Масса],Приход[Заказ],Спецификация[[#This Row],[Заказ]],Приход[Наименование материалов и конструкций],Спецификация[[#This Row],[Наименование]],Приход[Марка элемента],Спецификация[[#This Row],[Марка]]) -> 0
A92: 4043 | B92: Консольная плита | C92: ПК262 | D92: 1 | F92: 9452 | G92: 3395 | H92: =SUM(Спецификация[[#This Row],[т]:[н]])*Спецификация[[#This Row],[1 шт]] -> 3395 | K92: =SUMIFS(Приход[Масса],Приход[Заказ],Спецификация[[#This Row],[Заказ]],Приход[Наименование материалов и конструкций],Спецификация[[#This Row],[Наименование]],Приход[Марка элемента],Спецификация[[#This Row],[Марка]]) -> 0
A93: 4043 | B93: Накладка | C93: Н1 | D93: 192 | F93: 560 | G93: 7 | H93: =SUM(Спецификация[[#This Row],[т]:[н]])*Спецификация[[#This Row],[1 шт]] -> 1344 | K93: =SUMIFS(Приход[Масса],Приход[Заказ],Спецификация[[#This Row],[Заказ]],Приход[Наименование материалов и конструкций],Спецификация[[#This Row],[Наименование]],Приход[Марка элемента],Спецификация[[#This Row],[Марка]]) -> 0
A94: 4043 | B94: Накладка | C94: Н2 | D94: 64 | F94: 360 | G94: 9 | H94: =SUM(Спецификация[[#This Row],[т]:[н]])*Спецификация[[#This Row],[1 шт]] -> 576 | K94: =SUMIFS(Приход[Масса],Приход[Заказ],Спецификация[[#This Row],[Заказ]],Приход[Наименование материалов и конструкций],Спецификация[[#This Row],[Наименование]],Приход[Марка элемента],Спецификация[[#This Row],[Марка]]) -> 0
A95: 4043 | B95: Накладка | C95: Н3 | D95: 128 | F95: 330 | G95: 4 | H95: =SUM(Спецификация[[#This Row],[т]:[н]])*Спецификация[[#This Row],[1 шт]] -> 512 | K95: =SUMIFS(Приход[Масса],Приход[Заказ],Спецификация[[#This Row],[Заказ]],Приход[Наименование материалов и конструкций],Спецификация[[#This Row],[Наименование]],Приход[Марка элемента],Спецификация[[#This Row],[Марка]]) -> 0
A96: 4043 | B96: Накладка | C96: Н4 | D96: 312 | E96: 312 | F96: 470 | G96: 7 | H96: =SUM(Спецификация[[#This Row],[т]:[н]])*Спецификация[[#This Row],[1 шт]] -> 4368 | K96: =SUMIFS(Приход[Масса],Приход[Заказ],Спецификация[[#This Row],[Заказ]],Приход[Наименование материалов и конструкций],Спецификация[[#This Row],[Наименование]],Приход[Марка элемента],Спецификация[[#This Row],[Марка]]) -> 0
A97: 4043 | B97: Накладка | C97: Н5 | D97: 40 | E97: 40 | F97: 640 | G97: 9 | H97: =SUM(Спецификация[[#This Row],[т]:[н]])*Спецификация[[#This Row],[1 шт]] -> 720 | K97: =SUMIFS(Приход[Масса],Приход[Заказ],Спецификация[[#This Row],[Заказ]],Приход[Наименование материалов и конструкций],Спецификация[[#This Row],[Наименование]],Приход[Марка элемента],Спецификация[[#This Row],[Марка]]) -> 0
A98: 4043 | B98: Вставка верхнего пояса | C98: ВВП1 | D98: 4 | E98: 4 | F98: 5442 | G98: 810 | H98: =SUM(Спецификация[[#This Row],[т]:[н]])*Спецификация[[#This Row],[1 шт]] -> 6480 | K98: =SUMIFS(Приход[Масса],Приход[Заказ],Спецификация[[#This Row],[Заказ]],Приход[Наименование материалов и конструкций],Спецификация[[#This Row],[Наименование]],Приход[Марка элемента],Спецификация[[#This Row],[Марка]]) -> 0
A99: 4043 | B99: Вставка верхнего пояса | C99: ВВП2 | D99: 4 | F99: 2142 | G99: 330 | H99: =SUM(Спецификация[[#This Row],[т]:[н]])*Спецификация[[#This Row],[1 шт]] -> 1320 | K99: =SUMIFS(Приход[Масса],Приход[Заказ],Спецификация[[#This Row],[Заказ]],Приход[Наименование материалов и конструкций],Спецификация[[#This Row],[Наименование]],Приход[Марка элемента],Спецификация[[#This Row],[Марка]]) -> 0
A100: 4043 | B100: Вставка | C100: ВН1 | D100: 32 | F100: 640 | G100: 41 | H100: =SUM(Спецификация[[#This Row],[т]:[н]])*Спецификация[[#This Row],[1 шт]] -> 1312 | K100: =SUMIFS(Приход[Масса],Приход[Заказ],Спецификация[[#This Row],[Заказ]],Приход[Наименование материалов и конструкций],Спецификация[[#This Row],[Наименование]],Приход[Марка элемента],Спецификация[[#This Row],[Марка]]) -> 0
A101: 4043 | B101: Вставка | C101: В1 | D101: 3 | E101: 3 | F101: 2876 | G101: 156 | H101: =SUM(Спецификация[[#This Row],[т]:[н]])*Спецификация[[#This Row],[1 шт]] -> 936 | K101: =SUMIFS(Приход[Масса],Приход[Заказ],Спецификация[[#This Row],[Заказ]],Приход[Наименование материалов и конструкций],Спецификация[[#This Row],[Наименование]],Приход[Марка элемента],Спецификация[[#This Row],[Марка]]) -> 0
A102: 4043 | B102: Вставка | C102: В2 | D102: 6 | F102: 2813 | G102: 152 | H102: =SUM(Спецификация[[#This Row],[т]:[н]])*Спецификация[[#This Row],[1 шт]] -> 912 | K102: =SUMIFS(Приход[Масса],Приход[Заказ],Спецификация[[#This Row],[Заказ]],Приход[Наименование материалов и конструкций],Спецификация[[#This Row],[Наименование]],Приход[Марка элемента],Спецификация[[#This Row],[Марка]]) -> 0
A103: 4043 | B103: Вставка | C103: В8 | D103: 2 | F103: 2813 | G103: 174 | H103: =SUM(Спецификация[[#This Row],[т]:[н]])*Спецификация[[#This Row],[1 шт]] -> 348 | K103: =SUMIFS(Приход[Масса],Приход[Заказ],Спецификация[[#This Row],[Заказ]],Приход[Наименование материалов и конструкций],Спецификация[[#This Row],[Наименование]],Приход[Марка элемента],Спецификация[[#This Row],[Марка]]) -> 0
A104: 4043 | B104: Вставка | C104: В9 | D104: 1 | E104: 1 | F104: 2876 | G104: 178 | H104: =SUM(Спецификация[[#This Row],[т]:[н]])*Спецификация[[#This Row],[1 шт]] -> 356 | K104: =SUMIFS(Приход[Масса],Приход[Заказ],Спецификация[[#This Row],[Заказ]],Приход[Наименование материалов и конструкций],Спецификация[[#This Row],[Наименование]],Приход[Марка элемента],Спецификация[[#This Row],[Марка]]) -> 0
A105: 4043 | B105: Вставка | C105: В3 | D105: 64 | F105: 900 | G105: 18 | H105: =SUM(Спецификация[[#This Row],[т]:[н]])*Спецификация[[#This Row],[1 шт]] -> 1152 | K105: =SUMIFS(Приход[Масса],Приход[Заказ],Спецификация[[#This Row],[Заказ]],Приход[Наименование материалов и конструкций],Спецификация[[#This Row],[Наименование]],Приход[Марка элемента],Спецификация[[#This Row],[Марка]]) -> 0
A106: 4043 | B106: Вставка | C106: В4 | D106: 32 | F106: 444 | G106: 9 | H106: =SUM(Спецификация[[#This Row],[т]:[н]])*Спецификация[[#This Row],[1 шт]] -> 288 | K106: =SUMIFS(Приход[Масса],Приход[Заказ],Спецификация[[#This Row],[Заказ]],Приход[Наименование материалов и конструкций],Спецификация[[#This Row],[Наименование]],Приход[Марка элемента],Спецификация[[#This Row],[Марка]]) -> 0
A107: 4043 | B107: Вставка | C107: В5 | D107: 8 | F107: 492 | G107: 15 | H107: =SUM(Спецификация[[#This Row],[т]:[н]])*Спецификация[[#This Row],[1 шт]] -> 120 | K107: =SUMIFS(Приход[Масса],Приход[Заказ],Спецификация[[#This Row],[Заказ]],Приход[Наименование материалов и конструкций],Спецификация[[#This Row],[Наименование]],Приход[Марка элемента],Спецификация[[#This Row],[Марка]]) -> 0
A108: 4043 | B108: Вставка | C108: В6 | D108: 8 | F108: 492 | G108: 11 | H108: =SUM(Спецификация[[#This Row],[т]:[н]])*Спецификация[[#This Row],[1 шт]] -> 88 | K108: =SUMIFS(Приход[Масса],Приход[Заказ],Спецификация[[#This Row],[Заказ]],Приход[Наименование материалов и конструкций],Спецификация[[#This Row],[Наименование]],Приход[Марка элемента],Спецификация[[#This Row],[Марка]]) -> 0
A109: 4043 | B109: Вставка | C109: В7 | D109: 40 | F109: 180 | G109: 3 | H109: =SUM(Спецификация[[#This Row],[т]:[н]])*Спецификация[[#This Row],[1 шт]] -> 120 | K109: =SUMIFS(Приход[Масса],Приход[Заказ],Спецификация[[#This Row],[Заказ]],Приход[Наименование материалов и конструкций],Спецификация[[#This Row],[Наименование]],Приход[Марка элемента],Спецификация[[#This Row],[Марка]]) -> 0
A110: 4043 | B110: Можтажное ребро стенки | C110: РС1 | D110: 8 | F110: 2120 | G110: 63 | H110: =SUM(Спецификация[[#This Row],[т]:[н]])*Спецификация[[#This Row],[1 шт]] -> 504 | K110: =SUMIFS(Приход[Масса],Приход[Заказ],Спецификация[[#This Row],[Заказ]],Приход[Наименование материалов и конструкций],Спецификация[[#This Row],[Наименование]],Приход[Марка элемента],Спецификация[[#This Row],[Марка]]) -> 0
A111: 4043 | B111: Можтажное ребро стенки | C111: РС2 | D111: 8 | F111: 2072 | G111: 60 | H111: =SUM(Спецификация[[#This Row],[т]:[н]])*Спецификация[[#This Row],[1 шт]] -> 480 | K111: =SUMIFS(Приход[Масса],Приход[Заказ],Спецификация[[#This Row],[Заказ]],Приход[Наименование материалов и конструкций],Спецификация[[#This Row],[Наименование]],Приход[Марка элемента],Спецификация[[#This Row],[Марка]]) -> 0
A112: 4042 | B112: Балка | C112: Б251 | D112: 1 | F112: 9560 | G112: 12258 | H112: =SUM(Спецификация[[#This Row],[т]:[н]])*Спецификация[[#This Row],[1 шт]] -> 12258 | K112: =SUMIFS(Приход[Масса],Приход[Заказ],Спецификация[[#This Row],[Заказ]],Приход[Наименование материалов и конструкций],Спецификация[[#This Row],[Наименование]],Приход[Марка элемента],Спецификация[[#This Row],[Марка]]) -> 0
A113: 4042 | B113: Балка | C113: Б261 | D113: 2 | F113: 9560 | G113: 12451 | H113: =SUM(Спецификация[[#This Row],[т]:[н]])*Спецификация[[#This Row],[1 шт]] -> 24902 | I113: 212 | K113: =SUMIFS(Приход[Масса],Приход[Заказ],Спецификация[[#This Row],[Заказ]],Приход[Наименование материалов и конструкций],Спецификация[[#This Row],[Наименование]],Приход[Марка элемента],Спецификация[[#This Row],[Марка]]) -> 0
A114: 4042 | B114: Балка | C114: Б281 | D114: 1 | F114: 9560 | G114: 12251 | H114: =SUM(Спецификация[[#This Row],[т]:[н]])*Спецификация[[#This Row],[1 шт]] -> 12251 | I114: 212 | K114: =SUMIFS(Приход[Масса],Приход[Заказ],Спецификация[[#This Row],[Заказ]],Приход[Наименование материалов и конструкций],Спецификация[[#This Row],[Наименование]],Приход[Марка элемента],Спецификация[[#This Row],[Марка]]) -> 0
A115: 4042 | B115: Балка | C115: Б252 | D115: 1 | F115: 9540 | G115: 11290 | H115: =SUM(Спецификация[[#This Row],[т]:[н]])*Спецификация[[#This Row],[1 шт]] -> 11290 | K115: =SUMIFS(Приход[Масса],Приход[Заказ],Спецификация[[#This Row],[Заказ]],Приход[Наименование материалов и конструкций],Спецификация[[#This Row],[Наименование]],Приход[Марка элемента],Спецификация[[#This Row],[Марка]]) -> 0
A116: 4042 | B116: Балка | C116: Б262 | D116: 2 | F116: 9540 | G116: 11503 | H116: =SUM(Спецификация[[#This Row],[т]:[н]])*Спецификация[[#This Row],[1 шт]] -> 23006 | I116: 200 | K116: =SUMIFS(Приход[Масса],Приход[Заказ],Спецификация[[#This Row],[Заказ]],Приход[Наименование материалов и конструкций],Спецификация[[#This Row],[Наименование]],Приход[Марка элемента],Спецификация[[#This Row],[Марка]]) -> 0
A117: 4042 | B117: Балка | C117: Б282 | D117: 1 | F117: 9540 | G117: 11282 | H117: =SUM(Спецификация[[#This Row],[т]:[н]])*Спецификация[[#This Row],[1 шт]] -> 11282 | I117: 200 | K117: =SUMIFS(Приход[Масса],Приход[Заказ],Спецификация[[#This Row],[Заказ]],Приход[Наименование материалов и конструкций],Спецификация[[#This Row],[Наименование]],Приход[Марка элемента],Спецификация[[#This Row],[Марка]]) -> 0
A118: 4042 | B118: Балка | C118: Б253 | D118: 1 | F118: 9466 | G118: 11223 | H118: =SUM(Спецификация[[#This Row],[т]:[н]])*Спецификация[[#This Row],[1 шт]] -> 11223 | K118: =SUMIFS(Приход[Масса],Приход[Заказ],Спецификация[[#This Row],[Заказ]],Приход[Наименование материалов и конструкций],Спецификация[[#This Row],[Наименование]],Приход[Марка элемента],Спецификация[[#This Row],[Марка]]) -> 0
A119: 4042 | B119: Балка | C119: Б263 | D119: 2 | F119: 9466 | G119: 11431 | H119: =SUM(Спецификация[[#This Row],[т]:[н]])*Спецификация[[#This Row],[1 шт]] -> 22862 | I119: 200 | K119: =SUMIFS(Приход[Масса],Приход[Заказ],Спецификация[[#This Row],[Заказ]],Приход[Наименование материалов и конструкций],Спецификация[[#This Row],[Наименование]],Приход[Марка элемента],Спецификация[[#This Row],[Марка]]) -> 0
A120: 4042 | B120: Балка | C120: Б283 | D120: 1 | F120: 9466 | G120: 11215 | H120: =SUM(Спецификация[[#This Row],[т]:[н]])*Спецификация[[#This Row],[1 шт]] -> 11215 | I120: 200 | K120: =SUMIFS(Приход[Масса],Приход[Заказ],Спецификация[[#This Row],[Заказ]],Приход[Наименование материалов и конструкций],Спецификация[[#This Row],[Наименование]],Приход[Марка элемента],Спецификация[[#This Row],[Марка]]) -> 0
A121: 4042 | B121: Балка | C121: Б254 | D121: 1 | F121: 9444 | G121: 12082 | H121: =SUM(Спецификация[[#This Row],[т]:[н]])*Спецификация[[#This Row],[1 шт]] -> 12082 | K121: =SUMIFS(Приход[Масса],Приход[Заказ],Спецификация[[#This Row],[Заказ]],Приход[Наименование материалов и конструкций],Спецификация[[#This Row],[Наименование]],Приход[Марка элемента],Спецификация[[#This Row],[Марка]]) -> 0
A122: 4042 | B122: Балка | C122: Б264 | D122: 2 | F122: 9444 | G122: 12305 | H122: =SUM(Спецификация[[#This Row],[т]:[н]])*Спецификация[[#This Row],[1 шт]] -> 24610 | I122: 210 | K122: =SUMIFS(Приход[Масса],Приход[Заказ],Спецификация[[#This Row],[Заказ]],Приход[Наименование материалов и конструкций],Спецификация[[#This Row],[Наименование]],Приход[Марка элемента],Спецификация[[#This Row],[Марка]]) -> 0
A123: 4042 | B123: Балка | C123: Б284 | D123: 1 | F123: 9444 | G123: 12105 | H123: =SUM(Спецификация[[#This Row],[т]:[н]])*Спецификация[[#This Row],[1 шт]] -> 12105 | I123: 210 | K123: =SUMIFS(Приход[Масса],Приход[Заказ],Спецификация[[#This Row],[Заказ]],Приход[Наименование материалов и конструкций],Спецификация[[#This Row],[Наименование]],Приход[Марка элемента],Спецификация[[#This Row],[Марка]]) -> 0
A124: 4042 | B124: Ортотропная плита | C124: ПП261 | D124: 4 | F124: 8698 | G124: 4088 | H124: =SUM(Спецификация[[#This Row],[т]:[н]])*Спецификация[[#This Row],[1 шт]] -> 16352 | K124: =SUMIFS(Приход[Масса],Приход[Заказ],Спецификация[[#This Row],[Заказ]],Приход[Наименование материалов и конструкций],Спецификация[[#This Row],[Наименование]],Приход[Марка элемента],Спецификация[[#This Row],[Марка]]) -> 0
A125: 4042 | B125: Консольная плита | C125: ПК261 | D125: 2 | F125: 9664 | G125: 5280 | H125: =SUM(Спецификация[[#This Row],[т]:[н]])*Спецификация[[#This Row],[1 шт]] -> 10560 | K125: =SUMIFS(Приход[Масса],Приход[Заказ],Спецификация[[#This Row],[Заказ]],Приход[Наименование материалов и конструкций],Спецификация[[#This Row],[Наименование]],Приход[Марка элемента],Спецификация[[#This Row],[Марка]]) -> 0
A126: 4042 | B126: Консольная плита | C126: ПК271 | D126: 1 | F126: 9664 | G126: 5303 | H126: =SUM(Спецификация[[#This Row],[т]:[н]])*Спецификация[[#This Row],[1 шт]] -> 5303 | K126: =SUMIFS(Приход[Масса],Приход[Заказ],Спецификация[[#This Row],[Заказ]],Приход[Наименование материалов и конструкций],Спецификация[[#This Row],[Наименование]],Приход[Марка элемента],Спецификация[[#This Row],[Марка]]) -> 0
A127: 4042 | B127: Консольная плита | C127: ПК281 | D127: 1 | F127: 9664 | G127: 5303 | H127: =SUM(Спецификация[[#This Row],[т]:[н]])*Спецификация[[#This Row],[1 шт]] -> 5303 | K127: =SUMIFS(Приход[Масса],Приход[Заказ],Спецификация[[#This Row],[Заказ]],Приход[Наименование материалов и конструкций],Спецификация[[#This Row],[Наименование]],Приход[Марка элемента],Спецификация[[#This Row],[Марка]]) -> 0
A128: 4042 | B128: Консольная плита | C128: ПК262 | D128: 4 | F128: 9452 | G128: 3395 | H128: =SUM(Спецификация[[#This Row],[т]:[н]])*Спецификация[[#This Row],[1 шт]] -> 13580 | K128: =SUMIFS(Приход[Масса],Приход[Заказ],Спецификация[[#This Row],[Заказ]],Приход[Наименование материалов и конструкций],Спецификация[[#This Row],[Наименование]],Приход[Марка элемента],Спецификация[[#This Row],[Марка]]) -> 0
A129: 4042 | B129: Накладка | C129: Н1 | D129: 192 | F129: 560 | G129: 7 | H129: =SUM(Спецификация[[#This Row],[т]:[н]])*Спецификация[[#This Row],[1 шт]] -> 1344 | K129: =SUMIFS(Приход[Масса],Приход[Заказ],Спецификация[[#This Row],[Заказ]],Приход[Наименование материалов и конструкций],Спецификация[[#This Row],[Наименование]],Приход[Марка элемента],Спецификация[[#This Row],[Марка]]) -> 0
A130: 4042 | B130: Накладка | C130: Н2 | D130: 64 | F130: 360 | G130: 9 | H130: =SUM(Спецификация[[#This Row],[т]:[н]])*Спецификация[[#This Row],[1 шт]] -> 576 | K130: =SUMIFS(Приход[Масса],Приход[Заказ],Спецификация[[#This Row],[Заказ]],Приход[Наименование материалов и конструкций],Спецификация[[#This Row],[Наименование]],Приход[Марка элемента],Спецификация[[#This Row],[Марка]]) -> 0
A131: 4042 | B131: Накладка | C131: Н3 | D131: 128 | F131: 330 | G131: 4 | H131: =SUM(Спецификация[[#This Row],[т]:[н]])*Спецификация[[#This Row],[1 шт]] -> 512 | K131: =SUMIFS(Приход[Масса],Приход[Заказ],Спецификация[[#This Row],[Заказ]],Приход[Наименование материалов и конструкций],Спецификация[[#This Row],[Наименование]],Приход[Марка элемента],Спецификация[[#This Row],[Марка]]) -> 0
A132: 4042 | B132: Накладка | C132: Н4 | D132: 312 | E132: 312 | F132: 470 | G132: 7 | H132: =SUM(Спецификация[[#This Row],[т]:[н]])*Спецификация[[#This Row],[1 шт]] -> 4368 | K132: =SUMIFS(Приход[Масса],Приход[Заказ],Спецификация[[#This Row],[Заказ]],Приход[Наименование материалов и конструкций],Спецификация[[#This Row],[Наименование]],Приход[Марка элемента],Спецификация[[#This Row],[Марка]]) -> 0
A133: 4042 | B133: Накладка | C133: Н5 | D133: 40 | E133: 40 | F133: 640 | G133: 9 | H133: =SUM(Спецификация[[#This Row],[т]:[н]])*Спецификация[[#This Row],[1 шт]] -> 720 | K133: =SUMIFS(Приход[Масса],Приход[Заказ],Спецификация[[#This Row],[Заказ]],Приход[Наименование материалов и конструкций],Спецификация[[#This Row],[Наименование]],Приход[Марка элемента],Спецификация[[#This Row],[Марка]]) -> 0
A134: 4042 | B134: Вставка верхнего пояса | C134: ВВП1 | D134: 4 | E134: 4 | F134: 5442 | G134: 810 | H134: =SUM(Спецификация[[#This Row],[т]:[н]])*Спецификация[[#This Row],[1 шт]] -> 6480 | K134: =SUMIFS(Приход[Масса],Приход[Заказ],Спецификация[[#This Row],[Заказ]],Приход[Наименование материалов и конструкций],Спецификация[[#This Row],[Наименование]],Приход[Марка элемента],Спецификация[[#This Row],[Марка]]) -> 0
A135: 4042 | B135: Вставка верхнего пояса | C135: ВВП2 | D135: 4 | F135: 2142 | G135: 330 | H135: =SUM(Спецификация[[#This Row],[т]:[н]])*Спецификация[[#This Row],[1 шт]] -> 1320 | K135: =SUMIFS(Приход[Масса],Приход[Заказ],Спецификация[[#This Row],[Заказ]],Приход[Наименование материалов и конструкций],Спецификация[[#This Row],[Наименование]],Приход[Марка элемента],Спецификация[[#This Row],[Марка]]) -> 0
A136: 4042 | B136: Вставка | C136: ВН1 | D136: 32 | F136: 640 | G136: 41 | H136: =SUM(Спецификация[[#This Row],[т]:[н]])*Спецификация[[#This Row],[1 шт]] -> 1312 | K136: =SUMIFS(Приход[Масса],Приход[Заказ],Спецификация[[#This Row],[Заказ]],Приход[Наименование материалов и конструкций],Спецификация[[#This Row],[Наименование]],Приход[Марка элемента],Спецификация[[#This Row],[Марка]]) -> 0
A137: 4042 | B137: Вставка | C137: В1 | D137: 4 | E137: 4 | F137: 2876 | G137: 156 | H137: =SUM(Спецификация[[#This Row],[т]:[н]])*Спецификация[[#This Row],[1 шт]] -> 1248 | K137: =SUMIFS(Приход[Масса],Приход[Заказ],Спецификация[[#This Row],[Заказ]],Приход[Наименование материалов и конструкций],Спецификация[[#This Row],[Наименование]],Приход[Марка элемента],Спецификация[[#This Row],[Марка]]) -> 0
A138: 4042 | B138: Вставка | C138: В2 | D138: 8 | F138: 2813 | G138: 152 | H138: =SUM(Спецификация[[#This Row],[т]:[н]])*Спецификация[[#This Row],[1 шт]] -> 1216 | K138: =SUMIFS(Приход[Масса],Приход[Заказ],Спецификация[[#This Row],[Заказ]],Приход[Наименование материалов и конструкций],Спецификация[[#This Row],[Наименование]],Приход[Марка элемента],Спецификация[[#This Row],[Марка]]) -> 0
A139: 4042 | B139: Вставка | C139: В3 | D139: 64 | F139: 900 | G139: 18 | H139: =SUM(Спецификация[[#This Row],[т]:[н]])*Спецификация[[#This Row],[1 шт]] -> 1152 | K139: =SUMIFS(Приход[Масса],Приход[Заказ],Спецификация[[#This Row],[Заказ]],Приход[Наименование материалов и конструкций],Спецификация[[#This Row],[Наименование]],Приход[Марка элемента],Спецификация[[#This Row],[Марка]]) -> 0
A140: 4042 | B140: Вставка | C140: В4 | D140: 32 | F140: 444 | G140: 9 | H140: =SUM(Спецификация[[#This Row],[т]:[н]])*Спецификация[[#This Row],[1 шт]] -> 288 | K140: =SUMIFS(Приход[Масса],Приход[Заказ],Спецификация[[#This Row],[Заказ]],Приход[Наименование материалов и конструкций],Спецификация[[#This Row],[Наименование]],Приход[Марка элемента],Спецификация[[#This Row],[Марка]]) -> 0
A141: 4042 | B141: Вставка | C141: В5 | D141: 8 | F141: 492 | G141: 15 | H141: =SUM(Спецификация[[#This Row],[т]:[н]])*Спецификация[[#This Row],[1 шт]] -> 120 | K141: =SUMIFS(Приход[Масса],Приход[Заказ],Спецификация[[#This Row],[Заказ]],Приход[Наименование материалов и конструкций],Спецификация[[#This Row],[Наименование]],Приход[Марка элемента],Спецификация[[#This Row],[Марка]]) -> 0
A142: 4042 | B142: Вставка | C142: В6 | D142: 8 | F142: 492 | G142: 11 | H142: =SUM(Спецификация[[#This Row],[т]:[н]])*Спецификация[[#This Row],[1 шт]] -> 88 | K142: =SUMIFS(Приход[Масса],Приход[Заказ],Спецификация[[#This Row],[Заказ]],Приход[Наименование материалов и конструкций],Спецификация[[#This Row],[Наименование]],Приход[Марка элемента],Спецификация[[#This Row],[Марка]]) -> 0
A143: 4042 | B143: Вставка | C143: В7 | D143: 40 | F143: 180 | G143: 3 | H143: =SUM(Спецификация[[#This Row],[т]:[н]])*Спецификация[[#This Row],[1 шт]] -> 120 | K143: =SUMIFS(Приход[Масса],Приход[Заказ],Спецификация[[#This Row],[Заказ]],Приход[Наименование материалов и конструкций],Спецификация[[#This Row],[Наименование]],Приход[Марка элемента],Спецификация[[#This Row],[Марка]]) -> 0
A144: 4042 | B144: Можтажное ребро стенки | C144: РС1 | D144: 8 | F144: 2120 | G144: 63 | H144: =SUM(Спецификация[[#This Row],[т]:[н]])*Спецификация[[#This Row],[1 шт]] -> 504 | K144: =SUMIFS(Приход[Масса],Приход[Заказ],Спецификация[[#This Row],[Заказ]],Приход[Наименование материалов и конструкций],Спецификация[[#This Row],[Наименование]],Приход[Марка элемента],Спецификация[[#This Row],[Марка]]) -> 0
A145: 4042 | B145: Можтажное ребро стенки | C145: РС2 | D145: 8 | F145: 2072 | G145: 60 | H145: =SUM(Спецификация[[#This Row],[т]:[н]])*Спецификация[[#This Row],[1 шт]] -> 480 | K145: =SUMIFS(Приход[Масса],Приход[Заказ],Спецификация[[#This Row],[Заказ]],Приход[Наименование материалов и конструкций],Спецификация[[#This Row],[Наименование]],Приход[Марка элемента],Спецификация[[#This Row],[Марка]]) -> 0
A146: 4014 | B146: Балка | C146: Б341 | D146: 1 | F146: 9562 | G146: 13029 | H146: =SUM(Спецификация[[#This Row],[т]:[н]])*Спецификация[[#This Row],[1 шт]] -> 13029 | I146: 50 | J146: 144 | K146: =SUMIFS(Приход[Масса],Приход[Заказ],Спецификация[[#This Row],[Заказ]],Приход[Наименование материалов и конструкций],Спецификация[[#This Row],[Наименование]],Приход[Марка элемента],Спецификация[[#This Row],[Марка]]) -> 0
A147: 4014 | B147: Балка | C147: Б342 | D147: 1 | F147: 9540 | G147: 12139 | H147: =SUM(Спецификация[[#This Row],[т]:[н]])*Спецификация[[#This Row],[1 шт]] -> 12139 | I147: 52 | J147: 132 | K147: =SUMIFS(Приход[Масса],Приход[Заказ],Спецификация[[#This Row],[Заказ]],Приход[Наименование материалов и конструкций],Спецификация[[#This Row],[Наименование]],Приход[Марка элемента],Спецификация[[#This Row],[Марка]]) -> 0
A148: 4014 | B148: Балка | C148: Б343 | D148: 1 | F148: 9467 | G148: 12064 | H148: =SUM(Спецификация[[#This Row],[т]:[н]])*Спецификация[[#This Row],[1 шт]] -> 12064 | I148: 52 | J148: 132 | K148: =SUMIFS(Приход[Масса],Приход[Заказ],Спецификация[[#This Row],[Заказ]],Приход[Наименование материалов и конструкций],Спецификация[[#This Row],[Наименование]],Приход[Марка элемента],Спецификация[[#This Row],[Марка]]) -> 0
A149: 4014 | B149: Балка | C149: Б344 | D149: 1 | F149: 9444 | G149: 12870 | H149: =SUM(Спецификация[[#This Row],[т]:[н]])*Спецификация[[#This Row],[1 шт]] -> 12870 | I149: 49 | J149: 142 | K149: =SUMIFS(Приход[Масса],Приход[Заказ],Спецификация[[#This Row],[Заказ]],Приход[Наименование материалов и конструкций],Спецификация[[#This Row],[Наименование]],Приход[Марка элемента],Спецификация[[#This Row],[Марка]]) -> 0
A150: 4014 | B150: Балка | C150: Б351 | D150: 1 | F150: 9564 | G150: 12295 | H150: =SUM(Спецификация[[#This Row],[т]:[н]])*Спецификация[[#This Row],[1 шт]] -> 12295 | I150: 130 | K150: =SUMIFS(Приход[Масса],Приход[Заказ],Спецификация[[#This Row],[Заказ]],Приход[Наименование материалов и конструкций],Спецификация[[#This Row],[Наименование]],Приход[Марка элемента],Спецификация[[#This Row],[Марка]]) -> 0
A151: 4014 | B151: Балка | C151: Б352 | D151: 1 | F151: 9542 | G151: 11367 | H151: =SUM(Спецификация[[#This Row],[т]:[н]])*Спецификация[[#This Row],[1 шт]] -> 11367 | I151: 112 | K151: =SUMIFS(Приход[Масса],Приход[Заказ],Спецификация[[#This Row],[Заказ]],Приход[Наименование материалов и конструкций],Спецификация[[#This Row],[Наименование]],Приход[Марка элемента],Спецификация[[#This Row],[Марка]]) -> 0
A152: 4014 | B152: Балка | C152: Б353 | D152: 1 | F152: 9468 | G152: 11250 | H152: =SUM(Спецификация[[#This Row],[т]:[н]])*Спецификация[[#This Row],[1 шт]] -> 11250 | I152: 110 | K152: =SUMIFS(Приход[Масса],Приход[Заказ],Спецификация[[#This Row],[Заказ]],Приход[Наименование материалов и конструкций],Спецификация[[#This Row],[Наименование]],Приход[Марка элемента],Спецификация[[#This Row],[Марка]]) -> 0
A153: 4014 | B153: Балка | C153: Б354 | D153: 1 | F153: 9446 | G153: 12133 | H153: =SUM(Спецификация[[#This Row],[т]:[н]])*Спецификация[[#This Row],[1 шт]] -> 12133 | I153: 130 | K153: =SUMIFS(Приход[Масса],Приход[Заказ],Спецификация[[#This Row],[Заказ]],Приход[Наименование материалов и конструкций],Спецификация[[#This Row],[Наименование]],Приход[Марка элемента],Спецификация[[#This Row],[Марка]]) -> 0
A154: 4014 | B154: Балка | C154: Б361 | D154: 1 | F154: 9561 | G154: 12526 | H154: =SUM(Спецификация[[#This Row],[т]:[н]])*Спецификация[[#This Row],[1 шт]] -> 12526 | I154: 50 | J154: 144 | K154: =SUMIFS(Приход[Масса],Приход[Заказ],Спецификация[[#This Row],[Заказ]],Приход[Наименование материалов и конструкций],Спецификация[[#This Row],[Наименование]],Приход[Марка элемента],Спецификация[[#This Row],[Марка]]) -> 0
A155: 4014 | B155: Балка | C155: Б362 | D155: 1 | F155: 9540 | G155: 11559 | H155: =SUM(Спецификация[[#This Row],[т]:[н]])*Спецификация[[#This Row],[1 шт]] -> 11559 | I155: 52 | J155: 132 | K155: =SUMIFS(Приход[Масса],Приход[Заказ],Спецификация[[#This Row],[Заказ]],Приход[Наименование материалов и конструкций],Спецификация[[#This Row],[Наименование]],Приход[Марка элемента],Спецификация[[#This Row],[Марка]]) -> 0
A156: 4014 | B156: Балка | C156: Б363 | D156: 1 | F156: 9467 | G156: 11488 | H156: =SUM(Спецификация[[#This Row],[т]:[н]])*Спецификация[[#This Row],[1 шт]] -> 11488 | I156: 50 | J156: 131 | K156: =SUMIFS(Приход[Масса],Приход[Заказ],Спецификация[[#This Row],[Заказ]],Приход[Наименование материалов и конструкций],Спецификация[[#This Row],[Наименование]],Приход[Марка элемента],Спецификация[[#This Row],[Марка]]) -> 0
A157: 4014 | B157: Балка | C157: Б364 | D157: 1 | F157: 9444 | G157: 12371 | H157: =SUM(Спецификация[[#This Row],[т]:[н]])*Спецификация[[#This Row],[1 шт]] -> 12371 | I157: 49 | J157: 142 | K157: =SUMIFS(Приход[Масса],Приход[Заказ],Спецификация[[#This Row],[Заказ]],Приход[Наименование материалов и конструкций],Спецификация[[#This Row],[Наименование]],Приход[Марка элемента],Спецификация[[#This Row],[Марка]]) -> 0
A158: 4014 | B158: Ортотропная плита | C158: ПП341 | D158: 1 | F158: 8698 | G158: 4083 | H158: =SUM(Спецификация[[#This Row],[т]:[н]])*Спецификация[[#This Row],[1 шт]] -> 4083 | K158: =SUMIFS(Приход[Масса],Приход[Заказ],Спецификация[[#This Row],[Заказ]],Приход[Наименование материалов и конструкций],Спецификация[[#This Row],[Наименование]],Приход[Марка элемента],Спецификация[[#This Row],[Марка]]) -> 0
A159: 4014 | B159: Ортотропная плита | C159: ПП351 | D159: 1 | F159: 8698 | G159: 4083 | H159: =SUM(Спецификация[[#This Row],[т]:[н]])*Спецификация[[#This Row],[1 шт]] -> 4083 | K159: =SUMIFS(Приход[Масса],Приход[Заказ],Спецификация[[#This Row],[Заказ]],Приход[Наименование материалов и конструкций],Спецификация[[#This Row],[Наименование]],Приход[Марка элемента],Спецификация[[#This Row],[Марка]]) -> 0
A160: 4014 | B160: Ортотропная плита | C160: ПП361 | D160: 1 | F160: 8698 | G160: 4083 | H160: =SUM(Спецификация[[#This Row],[т]:[н]])*Спецификация[[#This Row],[1 шт]] -> 4083 | K160: =SUMIFS(Приход[Масса],Приход[Заказ],Спецификация[[#This Row],[Заказ]],Приход[Наименование материалов и конструкций],Спецификация[[#This Row],[Наименование]],Приход[Марка элемента],Спецификация[[#This Row],[Марка]]) -> 0
A161: 4014 | B161: Консольная плита | C161: ПК341 | D161: 1 | F161: 9666 | G161: 5313 | H161: =SUM(Спецификация[[#This Row],[т]:[н]])*Спецификация[[#This Row],[1 шт]] -> 5313 | K161: =SUMIFS(Приход[Масса],Приход[Заказ],Спецификация[[#This Row],[Заказ]],Приход[Наименование материалов и конструкций],Спецификация[[#This Row],[Наименование]],Приход[Марка элемента],Спецификация[[#This Row],[Марка]]) -> 0
A162: 4014 | B162: Консольная плита | C162: ПК342 | D162: 1 | F162: 9470 | G162: 3418 | H162: =SUM(Спецификация[[#This Row],[т]:[н]])*Спецификация[[#This Row],[1 шт]] -> 3418 | K162: =SUMIFS(Приход[Масса],Приход[Заказ],Спецификация[[#This Row],[Заказ]],Приход[Наименование материалов и конструкций],Спецификация[[#This Row],[Наименование]],Приход[Марка элемента],Спецификация[[#This Row],[Марка]]) -> 0
A163: 4014 | B163: Консольная плита | C163: ПК351 | D163: 1 | F163: 9666 | G163: 5282 | H163: =SUM(Спецификация[[#This Row],[т]:[н]])*Спецификация[[#This Row],[1 шт]] -> 5282 | K163: =SUMIFS(Приход[Масса],Приход[Заказ],Спецификация[[#This Row],[Заказ]],Приход[Наименование материалов и конструкций],Спецификация[[#This Row],[Наименование]],Приход[Марка элемента],Спецификация[[#This Row],[Марка]]) -> 0
A164: 4014 | B164: Консольная плита | C164: ПК352 | D164: 1 | F164: 9470 | G164: 3418 | H164: =SUM(Спецификация[[#This Row],[т]:[н]])*Спецификация[[#This Row],[1 шт]] -> 3418 | K164: =SUMIFS(Приход[Масса],Приход[Заказ],Спецификация[[#This Row],[Заказ]],Приход[Наименование материалов и конструкций],Спецификация[[#This Row],[Наименование]],Приход[Марка элемента],Спецификация[[#This Row],[Марка]]) -> 0
A165: 4014 | B165: Консольная плита | C165: ПК361 | D165: 1 | F165: 9666 | G165: 5282 | H165: =SUM(Спецификация[[#This Row],[т]:[н]])*Спецификация[[#This Row],[1 шт]] -> 5282 | K165: =SUMIFS(Приход[Масса],Приход[Заказ],Спецификация[[#This Row],[Заказ]],Приход[Наименование материалов и конструкций],Спецификация[[#This Row],[Наименование]],Приход[Марка элемента],Спецификация[[#This Row],[Марка]]) -> 0
A166: 4014 | B166: Консольная плита | C166: ПК362 | D166: 1 | F166: 9470 | G166: 3418 | H166: =SUM(Спецификация[[#This Row],[т]:[н]])*Спецификация[[#This Row],[1 шт]] -> 3418 | K166: =SUMIFS(Приход[Масса],Приход[Заказ],Спецификация[[#This Row],[Заказ]],Приход[Наименование материалов и конструкций],Спецификация[[#This Row],[Наименование]],Приход[Марка элемента],Спецификация[[#This Row],[Марка]]) -> 0
A167: 4014 | B167: Вставка по верхнему поясу | C167: ВВП1 | D167: 3 | E167: 3 | F167: 5442 | G167: 810 | H167: =SUM(Спецификация[[#This Row],[т]:[н]])*Спецификация[[#This Row],[1 шт]] -> 4860 | K167: =SUMIFS(Приход[Масса],Приход[Заказ],Спецификация[[#This Row],[Заказ]],Приход[Наименование материалов и конструкций],Спецификация[[#This Row],[Наименование]],Приход[Марка элемента],Спецификация[[#This Row],[Марка]]) -> 0
A168: 4014 | B168: Вставка по верхнему поясу | C168: ВВП2 | D168: 3 | F168: 2142 | G168: 330 | H168: =SUM(Спецификация[[#This Row],[т]:[н]])*Спецификация[[#This Row],[1 шт]] -> 990 | K168: =SUMIFS(Приход[Масса],Приход[Заказ],Спецификация[[#This Row],[Заказ]],Приход[Наименование материалов и конструкций],Спецификация[[#This Row],[Наименование]],Приход[Марка элемента],Спецификация[[#This Row],[Марка]]) -> 0
A169: 4014 | B169: Вставка по ребрам верхнего пояса | C169: ВРВ1 | D169: 30 | F169: 180 | G169: 3 | H169: =SUM(Спецификация[[#This Row],[т]:[н]])*Спецификация[[#This Row],[1 шт]] -> 90 | K169: =SUMIFS(Приход[Масса],Приход[Заказ],Спецификация[[#This Row],[Заказ]],Приход[Наименование материалов и конструкций],Спецификация[[#This Row],[Наименование]],Приход[Марка элемента],Спецификация[[#This Row],[Марка]]) -> 0
A170: 4014 | B170: Вставка по ребрам нижнего пояса | C170: ВРН1 | D170: 24 | F170: 444 | G170: 8 | H170: =SUM(Спецификация[[#This Row],[т]:[н]])*Спецификация[[#This Row],[1 шт]] -> 192 | K170: =SUMIFS(Приход[Масса],Приход[Заказ],Спецификация[[#This Row],[Заказ]],Приход[Наименование материалов и конструкций],Спецификация[[#This Row],[Наименование]],Приход[Марка элемента],Спецификация[[#This Row],[Марка]]) -> 0
A171: 4014 | B171: Вставка ребер по стенке | C171: ВРС1 | D171: 48 | F171: 900 | G171: 18 | H171: =SUM(Спецификация[[#This Row],[т]:[н]])*Спецификация[[#This Row],[1 шт]] -> 864 | K171: =SUMIFS(Приход[Масса],Приход[Заказ],Спецификация[[#This Row],[Заказ]],Приход[Наименование материалов и конструкций],Спецификация[[#This Row],[Наименование]],Приход[Марка элемента],Спецификация[[#This Row],[Марка]]) -> 0
A172: 4014 | B172: Можтажное ребро стенки | C172: РС1 | D172: 6 | F172: 2119 | G172: 63 | H172: =SUM(Спецификация[[#This Row],[т]:[н]])*Спецификация[[#This Row],[1 шт]] -> 378 | K172: =SUMIFS(Приход[Масса],Приход[Заказ],Спецификация[[#This Row],[Заказ]],Приход[Наименование материалов и конструкций],Спецификация[[#This Row],[Наименование]],Приход[Марка элемента],Спецификация[[#This Row],[Марка]]) -> 0
A173: 4014 | B173: Можтажное ребро стенки | C173: РС2 | D173: 6 | F173: 2071 | G173: 60 | H173: =SUM(Спецификация[[#This Row],[т]:[н]])*Спецификация[[#This Row],[1 шт]] -> 360 | K173: =SUMIFS(Приход[Масса],Приход[Заказ],Спецификация[[#This Row],[Заказ]],Приход[Наименование материалов и конструкций],Спецификация[[#This Row],[Наименование]],Приход[Марка элемента],Спецификация[[#This Row],[Марка]]) -> 0
A174: 4014 | B174: Вставка | C174: ВН1 | D174: 24 | F174: 530 | G174: 38 | H174: =SUM(Спецификация[[#This Row],[т]:[н]])*Спецификация[[#This Row],[1 шт]] -> 912 | K174: =SUMIFS(Приход[Масса],Приход[Заказ],Спецификация[[#This Row],[Заказ]],Приход[Наименование материалов и конструкций],Спецификация[[#This Row],[Наименование]],Приход[Марка элемента],Спецификация[[#This Row],[Марка]]) -> 0
A175: 4014 | B175: Вставка | C175: В1 | D175: 3 | E175: 3 | F175: 2876 | G175: 156 | H175: =SUM(Спецификация[[#This Row],[т]:[н]])*Спецификация[[#This Row],[1 шт]] -> 936 | K175: =SUMIFS(Приход[Масса],Приход[Заказ],Спецификация[[#This Row],[Заказ]],Приход[Наименование материалов и конструкций],Спецификация[[#This Row],[Наименование]],Приход[Марка элемента],Спецификация[[#This Row],[Марка]]) -> 0
A176: 4014 | B176: Вставка | C176: В2 | D176: 6 | F176: 2813 | G176: 152 | H176: =SUM(Спецификация[[#This Row],[т]:[н]])*Спецификация[[#This Row],[1 шт]] -> 912 | K176: =SUMIFS(Приход[Масса],Приход[Заказ],Спецификация[[#This Row],[Заказ]],Приход[Наименование материалов и конструкций],Спецификация[[#This Row],[Наименование]],Приход[Марка элемента],Спецификация[[#This Row],[Марка]]) -> 0
A177: 4014 | B177: Вставка | C177: В5 | D177: 6 | F177: 492 | G177: 15 | H177: =SUM(Спецификация[[#This Row],[т]:[н]])*Спецификация[[#This Row],[1 шт]] -> 90 | K177: =SUMIFS(Приход[Масса],Приход[Заказ],Спецификация[[#This Row],[Заказ]],Приход[Наименование материалов и конструкций],Спецификация[[#This Row],[Наименование]],Приход[Марка элемента],Спецификация[[#This Row],[Марка]]) -> 0
A178: 4014 | B178: Вставка | C178: В6 | D178: 6 | F178: 492 | G178: 11 | H178: =SUM(Спецификация[[#This Row],[т]:[н]])*Спецификация[[#This Row],[1 шт]] -> 66 | K178: =SUMIFS(Приход[Масса],Приход[Заказ],Спецификация[[#This Row],[Заказ]],Приход[Наименование материалов и конструкций],Спецификация[[#This Row],[Наименование]],Приход[Марка элемента],Спецификация[[#This Row],[Марка]]) -> 0
A179: 4014 | B179: Накладка | C179: Н1 | D179: 96 | F179: 170 | G179: 2 | H179: =SUM(Спецификация[[#This Row],[т]:[н]])*Спецификация[[#This Row],[1 шт]] -> 192 | K179: =SUMIFS(Приход[Масса],Приход[Заказ],Спецификация[[#This Row],[Заказ]],Приход[Наименование материалов и конструкций],Спецификация[[#This Row],[Наименование]],Приход[Марка элемента],Спецификация[[#This Row],[Марка]]) -> 0
A180: 4014 | B180: Накладка | C180: Н2 | D180: 144 | F180: 560 | G180: 7 | H180: =SUM(Спецификация[[#This Row],[т]:[н]])*Спецификация[[#This Row],[1 шт]] -> 1008 | K180: =SUMIFS(Приход[Масса],Приход[Заказ],Спецификация[[#This Row],[Заказ]],Приход[Наименование материалов и конструкций],Спецификация[[#This Row],[Наименование]],Приход[Марка элемента],Спецификация[[#This Row],[Марка]]) -> 0
A181: 4014 | B181: Накладка | C181: Н3 | D181: 96 | F181: 330 | G181: 4 | H181: =SUM(Спецификация[[#This Row],[т]:[н]])*Спецификация[[#This Row],[1 шт]] -> 384 | K181: =SUMIFS(Приход[Масса],Приход[Заказ],Спецификация[[#This Row],[Заказ]],Приход[Наименование материалов и конструкций],Спецификация[[#This Row],[Наименование]],Приход[Марка элемента],Спецификация[[#This Row],[Марка]]) -> 0
A182: 4014 | B182: Накладка | C182: Н3-1 | D182: 48 | F182: 360 | G182: 9 | H182: =SUM(Спецификация[[#This Row],[т]:[н]])*Спецификация[[#This Row],[1 шт]] -> 432 | K182: =SUMIFS(Приход[Масса],Приход[Заказ],Спецификация[[#This Row],[Заказ]],Приход[Наименование материалов и конструкций],Спецификация[[#This Row],[Наименование]],Приход[Марка элемента],Спецификация[[#This Row],[Марка]]) -> 0
A183: 4014 | B183: Накладка | C183: Н7 | D183: 234 | E183: 234 | F183: 470 | G183: 7 | H183: =SUM(Спецификация[[#This Row],[т]:[н]])*Спецификация[[#This Row],[1 шт]] -> 3276 | K183: =SUMIFS(Приход[Масса],Приход[Заказ],Спецификация[[#This Row],[Заказ]],Приход[Наименование материалов и конструкций],Спецификация[[#This Row],[Наименование]],Приход[Марка элемента],Спецификация[[#This Row],[Марка]]) -> 0
A184: 4014 | B184: Накладка | C184: Н8 | D184: 30 | E184: 30 | F184: 640 | G184: 9 | H184: =SUM(Спецификация[[#This Row],[т]:[н]])*Спецификация[[#This Row],[1 шт]] -> 540 | K184: =SUMIFS(Приход[Масса],Приход[Заказ],Спецификация[[#This Row],[Заказ]],Приход[Наименование материалов и конструкций],Спецификация[[#This Row],[Наименование]],Приход[Марка элемента],Спецификация[[#This Row],[Марка]]) -> 0
A185: 4041 | B185: Балка | C185: Б301 | D185: 1 | F185: 9592 | G185: 13029 | H185: =SUM(Спецификация[[#This Row],[т]:[н]])*Спецификация[[#This Row],[1 шт]] -> 13029 | I185: 50 | J185: 144 | K185: =SUMIFS(Приход[Масса],Приход[Заказ],Спецификация[[#This Row],[Заказ]],Приход[Наименование материалов и конструкций],Спецификация[[#This Row],[Наименование]],Приход[Марка элемента],Спецификация[[#This Row],[Марка]]) -> 0
A186: 4041 | B186: Балка | C186: Б302 | D186: 1 | F186: 9570 | G186: 12139 | H186: =SUM(Спецификация[[#This Row],[т]:[н]])*Спецификация[[#This Row],[1 шт]] -> 12139 | I186: 52 | J186: 132 | K186: =SUMIFS(Приход[Масса],Приход[Заказ],Спецификация[[#This Row],[Заказ]],Приход[Наименование материалов и конструкций],Спецификация[[#This Row],[Наименование]],Приход[Марка элемента],Спецификация[[#This Row],[Марка]]) -> 0
A187: 4041 | B187: Балка | C187: Б303 | D187: 1 | F187: 9497 | G187: 12064 | H187: =SUM(Спецификация[[#This Row],[т]:[н]])*Спецификация[[#This Row],[1 шт]] -> 12064 | K187: =SUMIFS(Приход[Масса],Приход[Заказ],Спецификация[[#This Row],[Заказ]],Приход[Наименование материалов и конструкций],Спецификация[[#This Row],[Наименование]],Приход[Марка элемента],Спецификация[[#This Row],[Марка]]) -> 0
A188: 4041 | B188: Балка | C188: Б304 | D188: 1 | F188: 9474 | G188: 12870 | H188: =SUM(Спецификация[[#This Row],[т]:[н]])*Спецификация[[#This Row],[1 шт]] -> 12870 | I188: 49 | J188: 142 | K188: =SUMIFS(Приход[Масса],Приход[Заказ],Спецификация[[#This Row],[Заказ]],Приход[Наименование материалов и конструкций],Спецификация[[#This Row],[Наименование]],Приход[Марка элемента],Спецификация[[#This Row],[Марка]]) -> 0
A189: 4041 | B189: Балка | C189: Б311 | D189: 1 | F189: 9602 | G189: 15439 | H189: =SUM(Спецификация[[#This Row],[т]:[н]])*Спецификация[[#This Row],[1 шт]] -> 15439 | I189: 50 | J189: 144 | K189: =SUMIFS(Приход[Масса],Приход[Заказ],Спецификация[[#This Row],[Заказ]],Приход[Наименование материалов и конструкций],Спецификация[[#This Row],[Наименование]],Приход[Марка элемента],Спецификация[[#This Row],[Марка]]) -> 0
A190: 4041 | B190: Балка | C190: Б312 | D190: 1 | F190: 9577 | G190: 14595 | H190: =SUM(Спецификация[[#This Row],[т]:[н]])*Спецификация[[#This Row],[1 шт]] -> 14595 | I190: 52 | J190: 132 | K190: =SUMIFS(Приход[Масса],Приход[Заказ],Спецификация[[#This Row],[Заказ]],Приход[Наименование материалов и конструкций],Спецификация[[#This Row],[Наименование]],Приход[Марка элемента],Спецификация[[#This Row],[Марка]]) -> 0
A191: 4041 | B191: Балка | C191: Б313 | D191: 1 | F191: 9493 | G191: 14486 | H191: =SUM(Спецификация[[#This Row],[т]:[н]])*Спецификация[[#This Row],[1 шт]] -> 14486 | I191: 52 | J191: 132 | K191: =SUMIFS(Приход[Масса],Приход[Заказ],Спецификация[[#This Row],[Заказ]],Приход[Наименование материалов и конструкций],Спецификация[[#This Row],[Наименование]],Приход[Марка элемента],Спецификация[[#This Row],[Марка]]) -> 0
A192: 4041 | B192: Балка | C192: Б314 | D192: 1 | F192: 9467 | G192: 15204 | H192: =SUM(Спецификация[[#This Row],[т]:[н]])*Спецификация[[#This Row],[1 шт]] -> 15204 | I192: 50 | J192: 144 | K192: =SUMIFS(Приход[Масса],Приход[Заказ],Спецификация[[#This Row],[Заказ]],Приход[Наименование материалов и конструкций],Спецификация[[#This Row],[Наименование]],Приход[Марка элемента],Спецификация[[#This Row],[Марка]]) -> 0
A193: 4041 | B193: Балка | C193: Б321 | D193: 1 | F193: 5392 | G193: 13897 | H193: =SUM(Спецификация[[#This Row],[т]:[н]])*Спецификация[[#This Row],[1 шт]] -> 13897 | I193: 27 | J193: 74.5 | K193: =SUMIFS(Приход[Масса],Приход[Заказ],Спецификация[[#This Row],[Заказ]],Приход[Наименование материалов и конструкций],Спецификация[[#This Row],[Наименование]],Приход[Марка элемента],Спецификация[[#This Row],[Марка]]) -> 0
A194: 4041 | B194: Балка | C194: Б322 | D194: 1 | F194: 5392 | G194: 13897 | H194: =SUM(Спецификация[[#This Row],[т]:[н]])*Спецификация[[#This Row],[1 шт]] -> 13897 | I194: 27 | J194: 745 | K194: =SUMIFS(Приход[Масса],Приход[Заказ],Спецификация[[#This Row],[Заказ]],Приход[Наименование материалов и конструкций],Спецификация[[#This Row],[Наименование]],Приход[Марка элемента],Спецификация[[#This Row],[Марка]]) -> 0
A195: 4041 | B195: Балка | C195: Б331 | D195: 1 | F195: 9602 | G195: 15439 | H195: =SUM(Спецификация[[#This Row],[т]:[н]])*Спецификация[[#This Row],[1 шт]] -> 15439 | K195: =SUMIFS(Приход[Масса],Приход[Заказ],Спецификация[[#This Row],[Заказ]],Приход[Наименование материалов и конструкций],Спецификация[[#This Row],[Наименование]],Приход[Марка элемента],Спецификация[[#This Row],[Марка]]) -> 0
A196: 4041 | B196: Балка | C196: Б332 | D196: 1 | F196: 9577 | G196: 14595 | H196: =SUM(Спецификация[[#This Row],[т]:[н]])*Спецификация[[#This Row],[1 шт]] -> 14595 | I196: 52 | J196: 132 | K196: =SUMIFS(Приход[Масса],Приход[Заказ],Спецификация[[#This Row],[Заказ]],Приход[Наименование материалов и конструкций],Спецификация[[#This Row],[Наименование]],Приход[Марка элемента],Спецификация[[#This Row],[Марка]]) -> 0
A197: 4041 | B197: Балка | C197: Б333 | D197: 1 | F197: 9493 | G197: 14486 | H197: =SUM(Спецификация[[#This Row],[т]:[н]])*Спецификация[[#This Row],[1 шт]] -> 14486 | I197: 52 | J197: 132 | K197: =SUMIFS(Приход[Масса],Приход[Заказ],Спецификация[[#This Row],[Заказ]],Приход[Наименование материалов и конструкций],Спецификация[[#This Row],[Наименование]],Приход[Марка элемента],Спецификация[[#This Row],[Марка]]) -> 0
A198: 4041 | B198: Балка | C198: Б334 | D198: 1 | F198: 9467 | G198: 15204 | H198: =SUM(Спецификация[[#This Row],[т]:[н]])*Спецификация[[#This Row],[1 шт]] -> 15204 | I198: 50 | J198: 144 | K198: =SUMIFS(Приход[Масса],Приход[Заказ],Спецификация[[#This Row],[Заказ]],Приход[Наименование материалов и конструкций],Спецификация[[#This Row],[Наименование]],Приход[Марка элемента],Спецификация[[#This Row],[Марка]]) -> 0
A199: 4041 | B199: Ортотропная плита | C199: ПП301 | D199: 1 | F199: 8728 | G199: 4083 | H199: =SUM(Спецификация[[#This Row],[т]:[н]])*Спецификация[[#This Row],[1 шт]] -> 4083 | K199: =SUMIFS(Приход[Масса],Приход[Заказ],Спецификация[[#This Row],[Заказ]],Приход[Наименование материалов и конструкций],Спецификация[[#This Row],[Наименование]],Приход[Марка элемента],Спецификация[[#This Row],[Марка]]) -> 0
A200: 4041 | B200: Ортотропная плита | C200: ПП311 | D200: 1 | F200: 8731 | G200: 4303 | H200: =SUM(Спецификация[[#This Row],[т]:[н]])*Спецификация[[#This Row],[1 шт]] -> 4303 | K200: =SUMIFS(Приход[Масса],Приход[Заказ],Спецификация[[#This Row],[Заказ]],Приход[Наименование материалов и конструкций],Спецификация[[#This Row],[Наименование]],Приход[Марка элемента],Спецификация[[#This Row],[Марка]]) -> 0
... 57 more rows
